Workbook

Sheet Overall Summary
A1: ='12 BHCollection EA REDA'!A1 -> RURAL BUSINESS COOPERATIVE SERVICE
A2: ='12 BHCollection EA REDA'!A2 -> RURAL ENERGY FOR AMERICA PROGRAM
A3: ='12 BHCollection EA REDA'!A3 -> ENERGY AUDIT (EA) AND RENEWABLE ENERGY DEVELOPMENT ASSITANCE (REDA)
A4: ='12 BHCollection RES-EEI<80K'!A3 -> RENEWABLE ENERGY SYSTEM (RES) AND ENERGY EFFICIENCY IMPROVEMENTS (EEI) - <$80K
A5: ='12 BHCollection RES-EEI 80><200'!A3 -> RENEWABLE ENERGY SYSTEM (RES) AND ENERGY EFFICIENCY IMPROVEMENTS (EEI) - $80K> <$200K
A6: ='12 BHCollection RES-EEI >200'!A3 -> RENEWABLE ENERGY SYSTEM (RES) AND ENERGY EFFICIENCY IMPROVEMENTS (EEI) - >$200K
A7: TECHNICAL ASSISTANCE GRANT PROGRAM
A8: ='12 BHCollection EA REDA'!A4 -> INFORMATION COLLECTION BURDEN HOURS
A9: ='12 BHCollection EA REDA'!A5 -> OMB # 0570 - 0067
A10: 2024-10-10
A12: For FR Notice
B13: RES/EEI
B14: <80 | C14: 80><200 | D14: >200 | E14: EA/REDA | F14: TAG | G14: Total
A15: Estimated No. of Total Respondents (Applicants) | B15: ='12 BHCollection RES-EEI<80K'!E9 -> 1,054 | C15: ='12 BHCollection RES-EEI 80><200'!E9 -> 1,326 | D15: ='12 BHCollection RES-EEI >200'!E9 -> 1,818 | E15: ='12 BHCollection EA REDA'!C8 -> 28 | F15: ='12 BHCollection TAG'!C8 -> 389 | G15: =SUM(B15:F15) -> 4,615
A16: Estimated No. of Total Awards (Awardees) | B16: ='12 BHCollection RES-EEI<80K'!K9 -> 966 | C16: ='12 BHCollection RES-EEI 80><200'!K9 -> 1,215 | D16: ='12 BHCollection RES-EEI >200'!K9 -> 1,666 | E16: ='12 BHCollection EA REDA'!K8 -> 22 | F16: ='12 BHCollection TAG'!K8 -> 116 | G16: =SUM(B16:F16) -> 3,985
A17: Total Responses | B17: ='12 BHCollection RES-EEI<80K'!G12 -> 18,688 | C17: ='12 BHCollection RES-EEI 80><200'!G12 -> 23,456 | D17: ='12 BHCollection RES-EEI >200'!G12 -> 38,047 | E17: ='12 BHCollection EA REDA'!G10 -> 298 | F17: ='12 BHCollection TAG'!G10 -> 2,368 | G17: =SUM(B17:F17) -> 82,857
A18: Estimated Total Hours | B18: ='12 BHCollection RES-EEI<80K'!I12 -> 51,143 | C18: ='12 BHCollection RES-EEI 80><200'!I12 -> 60,825 | D18: ='12 BHCollection RES-EEI >200'!I12 -> 139,165 | E18: ='12 BHCollection EA REDA'!I10 -> 964 | F18: ='12 BHCollection TAG'!I10 -> 6,546 | G18: 258,643
A19: Total Cost | B19: ='12 BHCollection RES-EEI<80K'!K12 -> 3,786,150 | C19: ='12 BHCollection RES-EEI 80><200'!K12 -> 4,502,895 | D19: ='12 BHCollection RES-EEI >200'!K12 -> 10,302,398 | E19: ='12 BHCollection EA REDA'!K10 -> 71,355 | F19: ='12 BHCollection TAG'!K10 -> 484,607 | G19: 19,147,405
A20: Average Hours Per Response | B20: =B18/B17 -> 2.737 | C20: =C18/C17 -> 2.593 | D20: 3.658 | E20: 3.232 | F20: 2.764 | G20: 3.122
A21: Number of Responses Per Respondent | B21: =B17/B15 -> 17.730 | C21: =C17/C15 -> 17.690 | D21: 20.928 | E21: 10.651 | F21: 6.087 | G21: 17.954
A25: Supporting Statement Tables:
A26: Table 12.1
B27: RES/EEI
B28: <80 | C28: 80><200 | D28: >200 | E28: EA/REDA | F28: TAG | G28: Total
A29: Total Respondents (Applicants) | B29: ='12 BHCollection RES-EEI<80K'!E9 -> 1,054 | C29: ='12 BHCollection RES-EEI 80><200'!E9 -> 1,326 | D29: ='12 BHCollection RES-EEI >200'!E9 -> 1,818 | E29: ='12 BHCollection EA REDA'!C8 -> 28 | F29: ='12 BHCollection TAG'!C8 -> 389 | G29: =SUM(B29:F29) -> 4,615
A30: Total Awards (Awardees) | B30: ='12 BHCollection RES-EEI<80K'!K9 -> 966 | C30: ='12 BHCollection RES-EEI 80><200'!K9 -> 1,215 | D30: ='12 BHCollection RES-EEI >200'!K9 -> 1,666 | E30: ='12 BHCollection EA REDA'!K8 -> 22 | F30: ='12 BHCollection TAG'!K8 -> 116 | G30: =SUM(B30:F30) -> 3,985
A31: Annual Responses | B31: ='12 BHCollection RES-EEI<80K'!G12 -> 18,688 | C31: ='12 BHCollection RES-EEI 80><200'!G12 -> 23,456 | D31: ='12 BHCollection RES-EEI >200'!G12 -> 38,047 | E31: ='[1]12 BH Collection Tribal Lands'!$H$10 -> 719 | F31: ='[1]12 BH Collection ECWAG'!$H$10 -> 1,968 | G31: =SUM(B31:F31) -> 82,878
A32: Total Hours | B32: =ROUND('12 BHCollection RES-EEI<80K'!I12,0) -> 51,143 | C32: =ROUND('12 BHCollection RES-EEI 80><200'!I12,0) -> 60,825 | D32: =ROUND('12 BHCollection RES-EEI >200'!I12,0) -> 139,165 | E32: =ROUND('12 BHCollection EA REDA'!I10,0) -> 964 | F32: =ROUND('12 BHCollection TAG'!I10,0) -> 6,546 | G32: =SUM(B32:F32) -> 258,643
A33: Cost per Hours | B33: =ROUND('12 Est Prof Wage Rate'!G38,2) -> $74.03
A34: Total Annual Cost | B34: =B32*$B$33 -> $3,786,116 | C34: =C32*$B$33 -> $4,502,875 | D34: $10,302,385 | E34: $71,365 | F34: $484,600 | G34: =SUM(B34:F34) -> $19,147,341
A36: Table 14.1
A37: Review | B37: RES/EEI
A38: Type | B38: <80 | C38: 80><200 | D38: >200 | E38: EA/REDA | F38: TAG | G38: Total
A39: Other Requirements | B39: =ROUND('14 Annual$FedGovEst RES-EEI <80'!K23,0) -> $628,907 | C39: =ROUND('14Ann$FedGovEst RES-EEI80><200'!K23,0) -> $791,206 | D39: =ROUND('14 Annual$FedGovEst RES-EEI>200'!K23,0) -> $1,325,156 | E39: =ROUND('14 Annual $ Fed Gov Est EA REDA'!K23,0) -> $15,210 | F39: $0 | G39: =SUM(B39:F39) -> $2,760,479
A40: Application | B40: =ROUND('14 Annual$FedGovEst RES-EEI <80'!K27,0) -> $628,907 | C40: =ROUND('14Ann$FedGovEst RES-EEI80><200'!K27,0) -> $1,127,336 | D40: =ROUND('14 Annual$FedGovEst RES-EEI>200'!K27,0) -> $2,266,766 | E40: =ROUND('14 Annual $ Fed Gov Est EA REDA'!K27,0) -> $11,154 | F40: =ROUND('14 Annual $ Fed Gov Est TAG'!K23,0) -> $258,483 | G40: =SUM(B40:F40) -> $4,292,646
A41: Awardee Documents and Certifications | B41: =ROUND('14 Annual$FedGovEst RES-EEI <80'!K32,0) -> $155,181 | C41: =ROUND('14Ann$FedGovEst RES-EEI80><200'!K32,0) -> $195,182 | D41: =ROUND('14 Annual$FedGovEst RES-EEI>200'!K32,0) -> $267,632 | E41: =ROUND('14 Annual $ Fed Gov Est EA REDA'!K31,0) -> $7,464 | F41: =ROUND('14 Annual $ Fed Gov Est TAG'!K27,0) -> $60,276 | G41: =SUM(B41:F41) -> $685,735
A42: Reporting and Other | B42: =ROUND('14 Annual$FedGovEst RES-EEI <80'!K36,0) -> $136,164 | C42: =ROUND('14Ann$FedGovEst RES-EEI80><200'!K36,0) -> $412,238 | D42: =ROUND('14 Annual$FedGovEst RES-EEI>200'!K36,0) -> $565,258 | E42: =ROUND('14 Annual $ Fed Gov Est EA REDA'!K35,0) -> $7,464 | F42: =ROUND('14 Annual $ Fed Gov Est TAG'!K31,0) -> $69,411 | G42: =SUM(B42:F42) -> $1,190,535
A43: Total Cost to Federal Government | B43: =SUM(B39:B42) -> $1,549,159 | C43: =SUM(C39:C42) -> $2,525,962 | D43: $4,424,812 | E43: $41,292 | F43: $388,170 | G43: $8,929,395
A47: ROCIS Information:
A48: Number of Responses per Respondent | B48: =G31/G29 -> 17.95836945
A49: Time per Response | B49: =G32/G31 -> 3.12077

Sheet 12 BHCollection RES-EEI<80K
A1: RURAL BUSINESS COOPERATIVE SERVICE
A2: RURAL ENERGY FOR AMERICA PROGRAM
A3: RENEWABLE ENERGY SYSTEM (RES) AND ENERGY EFFICIENCY IMPROVEMENTS (EEI) - <$80K
A4: INFORMATION COLLECTION BURDEN HOURS
A5: OMB # 0570 - 0067
A6: ='Overall Summary'!A10 -> 2024-10-10
C8: RES | D8: EEI | E8: Total | I8: RES | J8: EEI | K8: Total
A9: Estimated No. of Total Respondents (Applicants) | C9: 864 | D9: 190 | E9: =SUM(C9:D9) -> 1,054 | H9: Estimated No. of Total Awards (Awardees) | I9: 792 | J9: 174 | K9: =SUM(I9:J9) -> 966
A10: Average hours per response | E10: =I12/G12 -> 2.737 | J10: Number of responses per respondent | K10: =G12/E9 -> 17.73
A12: Gray Columns have automatic formulas. DO NOT input numbers in these columns. | F12: TOTAL | G12: =SUM(G15:G48) -> 18,688 | I12: =SUM(I15:I48) -> 51,143 | K12: =SUM(K15:K48) -> $3,786,150
A13: (A) | B13: (B) | C13: (C) | D13: (D) | E13: (E) | F13: (F) | G13: (G) | H13: (H) | I13: (I) | J13: (J) | K13: (K)
A14: Regulation Reference 4280.XXX | B14: Title | C14: Form No. (If Any) | D14: % of Respondents Line Item is Applicable To | E14: Estimated # of Respondents | F14: Reports Filed Annually | G14: Total Responses (E) x (F) | H14: Estimated # of Hours Per Response (time estimated in 5 min intervals) | I14: Estimated Total Hours (G) x (H) | J14: Prof. Wage Rate | K14: Total Cost (I) x (J)
A15: OTHER REQUIREMENTS
A16: 105 | B16: Reviews and appeals | C16: written | D16: 1% | E16: =D16*$E$9 -> 5 | F16: 1.00 | G16: =E16*F16 -> 5 | H16: 12.00 | I16: =IF((H16*G16)="","",(H16*G16)) -> 63.24 | J16: ='12 Est Prof Wage Rate'!$G$38 -> $74.03 | K16: =IF((J16*I16)="","",(J16*I16)) -> $4,682
A17: 108(e) | B17: Discrimation Complaints | C17: written | D17: 1% | E17: 5 | F17: 1.00 | G17: 5 | H17: 1.00 | I17: 5.27 | J17: ='12 Est Prof Wage Rate'!$G$38 -> $74.03 | K17: $390
A18: APPLICATION
A19: 110(f) | B19: Application Withdrawal | C19: written | D19: 1% | E19: =D19*$E$9 -> 11 | F19: 1.00 | G19: =E19*F19 -> 11 | H19: 0.50 | I19: =IF((H19*G19)="","",(H19*G19)) -> 5.27 | J19: ='12 Est Prof Wage Rate'!$G$38 -> $74.03 | K19: =IF((J19*I19)="","",(J19*I19)) -> $390
A20: 112(f), (g) | B20: SAM Registration & UEI | C20: written | D20: 100% | E20: =D20*$E$9 -> 1,054 | F20: 1.00 | G20: 1,054 | H20: 9.50 | I20: 10,013.00 | J20: ='12 Est Prof Wage Rate'!$G$38 -> $74.03 | K20: $741,264
A21: 116(b) | B21: Feasibility Study (RES ONLY) | C21: written | D21: 6% | E21: =D21*$C$9 -> 52 | F21: 1.00 | G21: =E21*F21 -> 52 | H21: 40.00 | I21: =IF((H21*G21)="","",(H21*G21)) -> 2,073.60 | J21: ='12 Est Prof Wage Rate'!$G$38 -> $74.03 | K21: =IF((J21*I21)="","",(J21*I21)) -> $153,509
A22: 120(b)(1)(i) | B22: Application for Renewable Energy Systems and Energy Efficiency Improvements Projects, Total Project Costs of $80,000 or less. | C22: RD 4280-3A | D22: 100% | E22: 1,054 | F22: 1.00 | G22: 1,054 | H22: 10.00 | I22: =IF((H22*G22)="","",(H22*G22)) -> 10,540.00 | J22: ='12 Est Prof Wage Rate'!$G$38 -> $74.03 | K22: =IF((J22*I22)="","",(J22*I22)) -> $780,278
A23: 120(b)(1)(vi) | B23: Environmental Documentation | C23: written | D23: 100% | E23: 1,054 | F23: 1.00 | G23: 1,054 | H23: 6.00 | I23: 6,324.00 | J23: ='12 Est Prof Wage Rate'!$G$38 -> $74.03 | K23: $468,167
A24: 120(b)(3), (b)(4) | B24: Technical Report | C24: written | D24: 100% | E24: =D24*$E$9 -> 1,054 | F24: 1.00 | G24: 1,054 | H24: 4.00 | I24: 4,216.00 | J24: ='12 Est Prof Wage Rate'!$G$38 -> $74.03 | K24: $312,111
A25: 120(b)(3)(iii) | B25: Energy Assessment (EEI ONLY) | C25: written | D25: 100% | E25: =D25*$D$9 -> 190 | F25: 1.00 | G25: =E25*F25 -> 190 | H25: 4.00 | I25: =IF((H25*G25)="","",(H25*G25)) -> 760.00 | J25: ='12 Est Prof Wage Rate'!$G$38 -> $74.03 | K25: =IF((J25*I25)="","",(J25*I25)) -> $56,263
A26: 120(b), 121 | B26: Project Self Score | C26: written | D26: 100% | E26: =D26*$E$9 -> 1,054 | F26: 1.00 | G26: 1,054 | H26: 2.00 | I26: 2,108.00 | J26: ='12 Est Prof Wage Rate'!$G$38 -> $74.03 | K26: $156,056
A27: AWARDEE DOCUMENTS AND CERTIFICATIONS
A28: 110(g)(2) | B28: Technical Report Modifications | C28: written | D28: 1% | E28: =D28*$K$9 -> 10 | F28: 1.00 | G28: 10 | H28: 1.00 | I28: =IF((H28*G28)="","",(H28*G28)) -> 9.66 | J28: ='12 Est Prof Wage Rate'!$G$38 -> $74.03 | K28: =IF((J28*I28)="","",(J28*I28)) -> $715
A29: 110(h)(1) | B29: Time Extensions | C29: written | D29: 5% | E29: 48 | F29: 1.00 | G29: 48 | H29: 0.50 | I29: 24.15 | J29: ='12 Est Prof Wage Rate'!$G$38 -> $74.03 | K29: $1,788
A30: 123(b) | B30: Insurance | C30: written | D30: 100% | E30: 966 | F30: 1.00 | G30: 966 | H30: 1.00 | I30: 966.00 | J30: ='12 Est Prof Wage Rate'!$G$38 -> $74.03 | K30: $71,513
A31: 123(c)(2) | B31: Request for Obligation of Funds | C31: RD 1940-1 | D31: 100% | E31: 966 | F31: 1.00 | G31: 966 | H31: 0.25 | I31: 241.50 | J31: ='12 Est Prof Wage Rate'!$G$38 -> $74.03 | K31: $17,878
A32: 123(d) | B32: Evidence of matching funds | C32: written | D32: 100% | E32: =D32*$K$9 -> 966 | F32: 1.00 | G32: =E32*F32 -> 966 | H32: 1.00 | I32: =IF((H32*G32)="","",(H32*G32)) -> 966.00 | J32: ='12 Est Prof Wage Rate'!$G$38 -> $74.03 | K32: =IF((J32*I32)="","",(J32*I32)) -> $71,513
A33: 123(e) | B33: SAM Renewal | C33: written | D33: 100% | E33: 966 | F33: 1.00 | G33: 966 | H33: 1.00 | I33: 966.00 | J33: ='12 Est Prof Wage Rate'!$G$38 -> $74.03 | K33: $71,513
A34: 123(f) | B34: Rural Business Cooperative Service Financial Assistance Agreement | C34: RD 4280-2 | D34: 100% | E34: 966 | F34: 1.00 | G34: 966 | H34: 1.00 | I34: 966.00 | J34: ='12 Est Prof Wage Rate'!$G$38 -> $74.03 | K34: $71,513
A35: 123(h) | B35: Power purchase agreement (RES ONLY) | C35: written | D35: 29% | E35: =D35*$I$9 -> 230 | F35: 1.00 | G35: 230 | H35: 1.50 | I35: 344.52 | J35: ='12 Est Prof Wage Rate'!$G$38 -> $74.03 | K35: $25,505
A36: 124(b) | B36: Programmatic changes | C36: written | D36: 1% | E36: 5 | F36: 1.00 | G36: 5 | H36: 1.00 | I36: 4.83 | J36: ='12 Est Prof Wage Rate'!$G$38 -> $74.03 | K36: $358
A37: 120(d)(1) | B37: Grantee statement for accepting contractor's work | C37: written | D37: 100% | E37: 966 | F37: 1.00 | G37: 966 | H37: 0.25 | I37: 241.50 | J37: ='12 Est Prof Wage Rate'!$G$38 -> $74.03 | K37: $17,878
A38: 120(d)(1) & (2) | B38: Contractor Certification of Final Completion (Plus 30 days for RES only projects) | C38: written | D38: 100% | E38: =D38*$K$9 -> 966 | F38: 1.00 | G38: 966 | H38: 1.00 | I38: 966.00 | J38: ='12 Est Prof Wage Rate'!$G$38 -> $74.03 | K38: $71,513
A39: 124(a) | B39: Inspection | C39: written | D39: 25% | E39: =D39*$K$9 -> 242 | F39: 1.00 | G39: =E39*F39 -> 242 | H39: 0.50 | I39: =IF((H39*G39)="","",(H39*G39)) -> 120.75 | J39: ='12 Est Prof Wage Rate'!$G$38 -> $74.03 | K39: =IF((J39*I39)="","",(J39*I39)) -> $8,939
A40: REPORTING AND OTHER
A41: 124(c) | B41: Transfer of ownership | C41: written | D41: 1% | E41: =D41*$K$9 -> 5 | F41: 1.00 | G41: =E41*F41 -> 5 | H41: 0.50 | I41: =IF((H41*G41)="","",(H41*G41)) -> 2.42 | J41: ='12 Est Prof Wage Rate'!$G$38 -> $74.03 | K41: =IF((J41*I41)="","",(J41*I41)) -> $179
A42: 124(d) | B42: Disposition/bi-annual check of acquired property | C42: written | D42: 10% | E42: =D42*$K$9 -> 97 | F42: 0.50 | G42: 48 | H42: 1.00 | I42: 48.30 | J42: ='12 Est Prof Wage Rate'!$G$38 -> $74.03 | K42: $3,576
A43: 124(e) | B43: Recordkeeping | C43: written | D43: 100% | E43: =D43*$K$9 -> 966 | F43: 1.00 | G43: =E43*F43 -> 966 | H43: 1.00 | I43: =IF((H43*G43)="","",(H43*G43)) -> 966.00 | J43: ='12 Est Prof Wage Rate'!$G$38 -> $74.03 | K43: =IF((J43*I43)="","",(J43*I43)) -> $71,513
A44: 124(f) | B44: Audit requirement | C44: written | D44: 1% | E44: 10 | F44: 1.00 | G44: 10 | H44: 24.00 | I44: =IF((H44*G44)="","",(H44*G44)) -> 231.84 | J44: ='12 Est Prof Wage Rate'!$G$38 -> $74.03 | K44: =IF((J44*I44)="","",(J44*I44)) -> $17,163
A45: 124(i)(3)(i) | B45: Annual outcome project performance certification-RES | C45: 4280-3D | D45: 100% | E45: =D45*$I$9 -> 792 | F45: 1.00 | G45: 792 | H45: 0.25 | I45: 198.00 | J45: ='12 Est Prof Wage Rate'!$G$38 -> $74.03 | K45: $14,658
A46: 124(i)(3)(ii) | B46: Annual outcome project performance certification-EEI | C46: 4280-3D | D46: 100% | E46: =D46*$J$9 -> 174 | F46: 1.00 | G46: 174 | H46: 0.25 | I46: 43.50 | J46: ='12 Est Prof Wage Rate'!$G$38 -> $74.03 | K46: $3,220
A47: 124(i)(2)(i) | B47: Project performance report - semiannual | C47: written | D47: 100% | E47: =K9*D47 -> 966 | F47: 2.00 | G47: 1,932 | H47: 2.00 | I47: 3,864.00 | J47: ='12 Est Prof Wage Rate'!$G$38 -> $74.03 | K47: =IF((J47*I47)="","",(J47*I47)) -> $286,053
A48: 124(i)(2)(ii) | B48: Final Project Performance Report | C48: written | D48: 100% | E48: =K9*D48 -> 966 | F48: 2.00 | G48: =E48*F48 -> 1,932 | H48: 2.00 | I48: 3,864.00 | J48: ='12 Est Prof Wage Rate'!$G$38 -> $74.03 | K48: $286,053

Sheet 12 Not Inc BH RES-EEI<80
A1: RURAL BUSINESS COOPERATIVE SERVICE
A2: RURAL ENERGY FOR AMERICA PROGRAM
A3: RENEWABLE ENERGY SYSTEM (RES) AND ENERGY EFFICIENCY IMPROVEMENTS (EEI) - <$80K
A4: INFORMATION COLLECTION BURDEN HOURS
A5: OMB # 0570 - 0067
A6: ='Overall Summary'!A10 -> 2024-10-10
C8: RES | D8: EEI | E8: Total | I8: RES | J8: EEI | K8: Total
A9: Estimated No. of Total Respondents (Applicants) | C9: ='12 BHCollection RES-EEI<80K'!C9 -> 864 | D9: ='12 BHCollection RES-EEI<80K'!D9 -> 190 | E9: =SUM(C9:D9) -> 1,054 | H9: Estimated No. of Total Awards (Awardees) | I9: ='12 BHCollection RES-EEI<80K'!I9 -> 792 | J9: ='12 BHCollection RES-EEI<80K'!J9 -> 174 | K9: =SUM(I9:J9) -> 966
A10: Average hours per response | E10: =I12/G12 -> 0.730 | J10: Number of responses per respondent | K10: =G12/E9 -> 9.87
A12: Gray Columns have automatic formulas. DO NOT input numbers in these columns. | F12: TOTAL | G12: =SUM(G15:G27) -> 10,407 | I12: =SUM(I15:I27) -> 7,595 | K12: =SUM(K15:K27) -> 562,248
A13: (A) | B13: (B) | C13: (C) | D13: (D) | E13: (E) | F13: (F) | G13: (G) | H13: (H) | I13: (I) | J13: (J) | K13: (K)
A14: Regulation Reference 4280.XXX | B14: Title | C14: Form No. (If Any) | D14: % of Respondents Line Item is Applicable To | E14: Estimated # of Respondents | F14: Reports Filed Annually | G14: Total Responses (E) x (F) | H14: Estimated # of Hours Per Response (time estimated in 5 min intervals) | I14: Estimated Total Hours (G) x (H) | J14: Prof. Wage Rate | K14: Total Cost (I) x (J)
A15: APPLICATION
A16: 120(b)(1)(ii) | B16: Application for Federal Assistance | C16: SF 424 (4040-0004) | D16: 100% | E16: =D16*$E$9 -> 1,054 | F16: 1.00 | G16: =E16*F16 -> 1,054 | H16: 1.00 | I16: =IF((H16*G16)="","",(H16*G16)) -> 1,054.00 | J16: ='12 Est Prof Wage Rate'!$G$38 -> $74.03 | K16: =IF((J16*I16)="","",(J16*I16)) -> $78,028
A17: 120(b)(1)(iii) | B17: Budget Information - Construction Programs | C17: SF 424C (4040-0008) | D17: 100% | E17: 1,054 | F17: 1.00 | G17: 1,054 | H17: 3.00 | I17: 3,162.00 | J17: ='12 Est Prof Wage Rate'!$G$38 -> $74.03 | K17: $234,083
A18: 120(b)(1)(iv) | B18: Assurances - Construction Programs | C18: SF 424D (4040-0009) | D18: 100% | E18: 1,054 | F18: 1.00 | G18: 1,054 | H18: 0.25 | I18: 263.50 | J18: ='12 Est Prof Wage Rate'!$G$38 -> $74.03 | K18: $19,507
A19: AWARDEE DOCUMENTS AND CERTIFICATIONS
A20: 119(c)(3)(i); 120(c)(3)(i) | B20: Compliance Statement (Contract in excess of $10,000) | C20: RD-400-6 (0575-0201, 0189) | D20: 50% | E20: =D20*$K$9 -> 483 | F20: 1.00 | G20: =E20*F20 -> 483 | H20: 0.25 | I20: =IF((H20*G20)="","",(H20*G20)) -> 120.75 | J20: ='12 Est Prof Wage Rate'!$G$38 -> $74.03 | K20: =IF((J20*I20)="","",(J20*I20)) -> $8,939
A21: 120(d)(3) | B21: Certificate of Contractor's Release | C21: RD 1924-9 (0575-0042) | D21: 50% | E21: 483 | F21: 1.00 | G21: 483 | H21: 0.00 | I21: 0.00 | J21: ='12 Est Prof Wage Rate'!$G$38 -> $74.03 | K21: $0
A22: 120(d)(3) | B22: Release by Claimants | C22: RD 1924-10 (0575-0189) | D22: 50% | E22: 483 | F22: 1.00 | G22: 483 | H22: 1.00 | I22: 483.00 | J22: ='12 Est Prof Wage Rate'!$G$38 -> $74.03 | K22: $35,757
A23: 123(c)(1) | B23: Letter of Intent | C23: RD 1942-46 (0570-0021, 0061, 0062; 0572-0137; 0575-0015) | D23: 100% | E23: =D23*$K$9 -> 966 | F23: 1.00 | G23: =E23*F23 -> 966 | H23: 0.10 | I23: =IF((H23*G23)="","",(H23*G23)) -> 96.60 | J23: ='12 Est Prof Wage Rate'!$G$38 -> $74.03 | K23: =IF((J23*I23)="","",(J23*I23)) -> $7,151
A24: 123(c)(3) | B24: Disclosure of Lobbying Activities | C24: SF LLL (4040-0013) | D24: 100% | E24: =D24*$K$9 -> 966 | F24: 1.00 | G24: 966 | H24: 0.25 | I24: =IF((H24*G24)="","",(H24*G24)) -> 241.50 | J24: ='12 Est Prof Wage Rate'!$G$38 -> $74.03 | K24: =IF((J24*I24)="","",(J24*I24)) -> $17,878
A25: 123(c)(4) | B25: Assurance Agreement | C25: RD-400-4 (0575-0201, 0189) | D25: 100% | E25: 966 | F25: 1.00 | G25: 966 | H25: 0.25 | I25: 241.50 | J25: ='12 Est Prof Wage Rate'!$G$38 -> $74.03 | K25: $17,878
A26: 124(i)(1) | B26: Federal Financial Report | C26: SF 425 (4040-0014) | D26: 100% | E26: 966 | F26: 2.00 | G26: 1,932 | H26: 0.50 | I26: 966.00 | J26: ='12 Est Prof Wage Rate'!$G$38 -> $74.03 | K26: $71,513
A27: 124(g)(4) | B27: Outlay Report and Request for Reimbursement for Construction Programs | C27: SF 271 (4040-0011) | D27: 100% | E27: 966 | F27: 1.00 | G27: 966 | H27: 1.00 | I27: 966.00 | J27: ='12 Est Prof Wage Rate'!$G$38 -> $74.03 | K27: $71,513

Sheet 12 BHCollection RES-EEI 80><200
A1: RURAL BUSINESS COOPERATIVE SERVICE
A2: RURAL ENERGY FOR AMERICA PROGRAM
A3: RENEWABLE ENERGY SYSTEM (RES) AND ENERGY EFFICIENCY IMPROVEMENTS (EEI) - $80K> <$200K
A4: INFORMATION COLLECTION BURDEN HOURS
A5: OMB # 0570 - 0067
A6: ='Overall Summary'!A10 -> 2024-10-10
C8: RES | D8: EEI | E8: Total | I8: RES | J8: EEI | K8: Total
A9: Estimated No. of Total Respondents (Applicants) | C9: 1,028 | D9: 298 | E9: =SUM(C9:D9) -> 1,326 | H9: Estimated No. of Total Awards (Awardees) | I9: 942 | J9: 273 | K9: =SUM(I9:J9) -> 1,215
A10: Average hours per response | E10: =I12/G12 -> 2.593 | J10: Number of responses per respondent | K10: =G12/E9 -> 17.69
A12: Gray Columns have automatic formulas. DO NOT input numbers in these columns. | F12: TOTAL | G12: =SUM(G15:G52) -> 23,456 | I12: =SUM(I15:I52) -> 60,825 | K12: =SUM(K15:K52) -> 4,502,895
A13: (A) | B13: (B) | C13: (C) | D13: (D) | E13: (E) | F13: (F) | G13: (G) | H13: (H) | I13: (I) | J13: (J) | K13: (K)
A14: Regulation Reference 4280.XXX | B14: Title | C14: Form No. (If Any) | D14: % of Respondents Line Item is Applicable To | E14: Estimated # of Respondents | F14: Reports Filed Annually | G14: Total Responses (E) x (F) | H14: Estimated # of Hours Per Response (time estimated in 5 min intervals) | I14: Estimated Total Hours (G) x (H) | J14: Prof. Wage Rate | K14: Total Cost (I) x (J)
A15: OTHER REQUIREMENTS
A16: 105 | B16: Reviews and appeals | C16: written | D16: 1% | E16: =D16*$E$9 -> 13 | F16: 1.00 | G16: =E16*F16 -> 13 | H16: 12.00 | I16: =IF((H16*G16)="","",(H16*G16)) -> 159.12 | J16: ='12 Est Prof Wage Rate'!$G$38 -> $74.03 | K16: =IF((J16*I16)="","",(J16*I16)) -> $11,780
A17: 108(e) | B17: Discrimation Complaints | C17: written | D17: 1% | E17: 7 | F17: 1.00 | G17: 7 | H17: 1.00 | I17: 6.63 | J17: ='12 Est Prof Wage Rate'!$G$38 -> $74.03 | K17: $491
A18: APPLICATION
A19: 110(f) | B19: Application Withdrawal | C19: written | D19: 1% | E19: =D19*$E$9 -> 13 | F19: 1.00 | G19: =E19*F19 -> 13 | H19: 0.50 | I19: =IF((H19*G19)="","",(H19*G19)) -> 6.63 | J19: ='12 Est Prof Wage Rate'!$G$38 -> $74.03 | K19: =IF((J19*I19)="","",(J19*I19)) -> $491
A20: 112(f), (g) | B20: SAM Registration & UEI | C20: written | D20: 100% | E20: 1,326 | F20: 1.00 | G20: 1,326 | H20: 9.50 | I20: 12,597.00 | J20: ='12 Est Prof Wage Rate'!$G$38 -> $74.03 | K20: $932,558
A21: 116(b) | B21: Feasibility Study (RES ONLY) | C21: written | D21: 1.25% | E21: =D21*$C$9 -> 13 | F21: 1.00 | G21: 13 | H21: 40.00 | I21: 514.00 | J21: ='12 Est Prof Wage Rate'!$G$38 -> $74.03 | K21: $38,052
A22: 119(b)(1) | B22: Application for Renewable Energy Systems and Energy Efficiency Improvements Projects, Total Project Costs of Less than $200,000 but greater than $80,000. | C22: RD 4280-3B | D22: 100% | E22: 1,326 | F22: 1.00 | G22: 1,326 | H22: 10.00 | I22: 13,260.00 | J22: ='12 Est Prof Wage Rate'!$G$38 -> $74.03 | K22: $981,640
A23: 118(a)(6) | B23: Environmental Documentation | C23: written | D23: 100% | E23: 1,326 | F23: 1.00 | G23: 1,326 | H23: 5.00 | I23: 6,630.00 | J23: ='12 Est Prof Wage Rate'!$G$38 -> $74.03 | K23: $490,820
A24: 119(b)(4) | B24: Technical Report | C24: written | D24: 30% | E24: =D24*$E$9 -> 398 | F24: 1.00 | G24: 398 | H24: 8.00 | I24: 3,182.40 | J24: ='12 Est Prof Wage Rate'!$G$38 -> $74.03 | K24: $235,594
A25: 119(b)(4), 110(g) | B25: Energy Assessment (EEI ONLY) | C25: written | D25: 100% | E25: =D25*$D$9 -> 298 | F25: 1.00 | G25: =E25*F25 -> 298 | H25: 8.00 | I25: =IF((H25*G25)="","",(H25*G25)) -> 2,384.00 | J25: ='12 Est Prof Wage Rate'!$G$38 -> $74.03 | K25: =IF((J25*I25)="","",(J25*I25)) -> $176,488
A26: 119(b), 121 | B26: Project Self Score | C26: written | D26: 100% | E26: =D26*$E$9 -> 1,326 | F26: 1.00 | G26: 1,326 | H26: 2.00 | I26: 2,652.00 | J26: ='12 Est Prof Wage Rate'!$G$38 -> $74.03 | K26: $196,328
A27: AWARDEE DOCUMENTS AND CERTIFICATIONS
A28: 110(g)(2) | B28: Technical Report Modifications | C28: written | D28: 1% | E28: =D28*$K$9 -> 12 | F28: 1.00 | G28: 12 | H28: 1.00 | I28: =IF((H28*G28)="","",(H28*G28)) -> 12.15 | J28: ='12 Est Prof Wage Rate'!$G$38 -> $74.03 | K28: =IF((J28*I28)="","",(J28*I28)) -> $899
A29: 110(h)(1) | B29: Time Extensions | C29: written | D29: 5% | E29: 61 | F29: 1.00 | G29: 61 | H29: 0.50 | I29: 30.38 | J29: ='12 Est Prof Wage Rate'!$G$38 -> $74.03 | K29: $2,249
A30: 123(b) | B30: Insurance | C30: written | D30: 100% | E30: 1,215 | F30: 1.00 | G30: 1,215 | H30: 1.00 | I30: 1,215.00 | J30: ='12 Est Prof Wage Rate'!$G$38 -> $74.03 | K30: $89,947
A31: 123(c)(2) | B31: Request for Obligation of Funds | C31: RD 1940-1 | D31: 100% | E31: 1,215 | F31: 1.00 | G31: 1,215 | H31: 0.25 | I31: 303.75 | J31: ='12 Est Prof Wage Rate'!$G$38 -> $74.03 | K31: $22,487
A32: 123(d) | B32: Evidence of matching funds | C32: written | D32: 100% | E32: 1,215 | F32: 1.00 | G32: 1,215 | H32: 1.00 | I32: 1,215.00 | J32: ='12 Est Prof Wage Rate'!$G$38 -> $74.03 | K32: $89,947
A33: 123(e) | B33: SAM Renewal | C33: written | D33: 100% | E33: 1,215 | F33: 1.00 | G33: 1,215 | H33: 1.00 | I33: 1,215.00 | J33: ='12 Est Prof Wage Rate'!$G$38 -> $74.03 | K33: $89,947
A34: 123(f) | B34: Rural Business Cooperative Service Financial Assistance Agreement | C34: RD 4280-2 | D34: 100% | E34: 1,215 | F34: 1.00 | G34: 1,215 | H34: 1.00 | I34: 1,215.00 | J34: ='12 Est Prof Wage Rate'!$G$38 -> $74.03 | K34: $89,947
A35: 123(h) | B35: Power purchase agreement (RES ONLY) | C35: written | D35: 100% | E35: =D35*$J$9 -> 273 | F35: 1.00 | G35: 273 | H35: 1.50 | I35: 409.50 | J35: ='12 Est Prof Wage Rate'!$G$38 -> $74.03 | K35: $30,315
A36: 124(b) | B36: Programmatic changes | C36: written | D36: 1% | E36: 6 | F36: 1.00 | G36: 6 | H36: 1.00 | I36: 6.08 | J36: ='12 Est Prof Wage Rate'!$G$38 -> $74.03 | K36: $450
B37: Certification for Contracts,Grants and Loans (Regarding Lobbying) - For grants over $100,000 | C37: written | D37: 50% | E37: 608 | F37: 1.00 | G37: 608 | H37: 0.25 | I37: 151.88 | J37: ='12 Est Prof Wage Rate'!$G$38 -> $74.03 | K37: =IF((J37*I37)="","",(J37*I37)) -> $11,243
A38: 119(d)(1) | B38: Grantee acceptance of contractor work | C38: written | D38: 100% | E38: 1,215 | F38: 1.00 | G38: 1,215 | H38: 0.25 | I38: 303.75 | J38: ='12 Est Prof Wage Rate'!$G$38 -> $74.03 | K38: $22,487
A39: 119(d)(1) & (2) | B39: Contractor Certification of Final Completion (Plus 30 days for RES only projects) | C39: written | D39: 100% | E39: =D39*$K$9 -> 1,215 | F39: 1.00 | G39: 1,215 | H39: 1.00 | I39: 1,215.00 | J39: ='12 Est Prof Wage Rate'!$G$38 -> $74.03 | K39: $89,947
A40: 125(a)(3) | B40: Surety | C40: written | D40: 5% | E40: 61 | F40: 1.00 | G40: 61 | H40: 1.00 | I40: 60.75 | J40: ='12 Est Prof Wage Rate'!$G$38 -> $74.03 | K40: $4,497
A41: 125(d) | B41: Final plans and specs | C41: written | D41: 5% | E41: 61 | F41: 1.00 | G41: 61 | H41: 2.00 | I41: =IF((H41*G41)="","",(H41*G41)) -> 121.50 | J41: ='12 Est Prof Wage Rate'!$G$38 -> $74.03 | K41: =IF((J41*I41)="","",(J41*I41)) -> $8,995
A42: 125(e ) | B42: Contruction Contract | C42: written | D42: 5% | E42: 61 | F42: 1.00 | G42: 61 | H42: 2.00 | I42: 121.50 | J42: ='12 Est Prof Wage Rate'!$G$38 -> $74.03 | K42: $8,995
A43: 124(a) | B43: Inspection | C43: written | D43: 25% | E43: 304 | F43: 1.00 | G43: 304 | H43: 0.50 | I43: 151.88 | J43: ='12 Est Prof Wage Rate'!$G$38 -> $74.03 | K43: $11,243
A44: REPORTING AND OTHER
A45: 124(c) | B45: Transfer of ownership | C45: written | D45: 1% | E45: =D45*$K$9 -> 6 | F45: 1.00 | G45: =E45*F45 -> 6 | H45: 0.50 | I45: =IF((H45*G45)="","",(H45*G45)) -> 3.04 | J45: ='12 Est Prof Wage Rate'!$G$38 -> $74.03 | K45: =IF((J45*I45)="","",(J45*I45)) -> $225
A46: 124(d) | B46: Disposition/bi-annual check of acquired property | C46: written | D46: 25% | E46: =D46*$K$9 -> 304 | F46: 0.50 | G46: 152 | H46: 1.00 | I46: 151.88 | J46: ='12 Est Prof Wage Rate'!$G$38 -> $74.03 | K46: $11,243
A47: 124(e) | B47: Recordkeeping | C47: written | D47: 100% | E47: =D47*$K$9 -> 1,215 | F47: 1.00 | G47: 1,215 | H47: 1.00 | I47: 1,215.00 | J47: ='12 Est Prof Wage Rate'!$G$38 -> $74.03 | K47: $89,947
A48: 124(f) | B48: Audit requirement | C48: written | D48: 1% | E48: 12 | F48: 1.00 | G48: 12 | H48: 24.00 | I48: 291.60 | J48: ='12 Est Prof Wage Rate'!$G$38 -> $74.03 | K48: =IF((J48*I48)="","",(J48*I48)) -> $21,587
A49: 124(i)(3)(i) | B49: Annual outcome project performance certification-RES | C49: 4280-3D | D49: 100% | E49: =D49*$I$9 -> 942 | F49: 1.00 | G49: 942 | H49: 0.25 | I49: 235.50 | J49: ='12 Est Prof Wage Rate'!$G$38 -> $74.03 | K49: $17,434
A50: 124(i)(3)(ii) | B50: Annual outcome project performance certification-EEI | C50: 4280-3D | D50: 100% | E50: =D50*$J$9 -> 273 | F50: 1.00 | G50: 273 | H50: 0.25 | I50: 68.25 | J50: ='12 Est Prof Wage Rate'!$G$38 -> $74.03 | K50: $5,053
A51: 124(i)(2)(i) | B51: Project performance report - semiannual | C51: written | D51: 100% | E51: =$K$9*D51 -> 1,215 | F51: 2.00 | G51: 2,430 | H51: 2.00 | I51: 4,860.00 | J51: ='12 Est Prof Wage Rate'!$G$38 -> $74.03 | K51: =IF((J51*I51)="","",(J51*I51)) -> $359,787
A52: 124(i)(2)(ii) | B52: Final Project Performance Report | C52: written | D52: 100% | E52: =$K$9*D52 -> 1,215 | F52: 2.00 | G52: =E52*F52 -> 2,430 | H52: 2.00 | I52: 4,860.00 | J52: ='12 Est Prof Wage Rate'!$G$38 -> $74.03 | K52: $359,787

Sheet 12 Not Inc BH RES-EEI 80><200
A1: RURAL BUSINESS COOPERATIVE SERVICE
A2: RURAL ENERGY FOR AMERICA PROGRAM
A3: RENEWABLE ENERGY SYSTEM (RES) AND ENERGY EFFICIENCY IMPROVEMENTS (EEI) - $80K> <$200K
A4: INFORMATION COLLECTION BURDEN HOURS
A5: OMB # 0570 - 0067
A6: ='Overall Summary'!A10 -> 2024-10-10
C8: RES | D8: EEI | E8: Total | I8: RES | J8: EEI | K8: Total
A9: Estimated No. of Total Respondents (Applicants) | C9: ='12 BHCollection RES-EEI 80><200'!C9 -> 1,028 | D9: ='12 BHCollection RES-EEI 80><200'!D9 -> 298 | E9: =SUM(C9:D9) -> 1,326 | H9: Estimated No. of Total Awards (Awardees) | I9: ='12 BHCollection RES-EEI 80><200'!I9 -> 942 | J9: ='12 BHCollection RES-EEI 80><200'!J9 -> 273 | K9: =SUM(I9:J9) -> 1,215
A10: Average hours per response | E10: =I12/G12 -> 0.755 | J10: Number of responses per respondent | K10: =G12/E9 -> 9.87
A12: Gray Columns have automatic formulas. DO NOT input numbers in these columns. | F12: TOTAL | G12: =SUM(G15:G27) -> 13,091 | I12: =SUM(I15:I27) -> 9,888 | K12: =SUM(K15:K27) -> $732,010
A13: (A) | B13: (B) | C13: (C) | D13: (D) | E13: (E) | F13: (F) | G13: (G) | H13: (H) | I13: (I) | J13: (J) | K13: (K)
A14: Regulation Reference 4280.XXX | B14: Title | C14: Form No. (If Any) | D14: % of Respondents Line Item is Applicable To | E14: Estimated # of Respondents | F14: Reports Filed Annually | G14: Total Responses (E) x (F) | H14: Estimated # of Hours Per Response (time estimated in 5 min intervals) | I14: Estimated Total Hours (G) x (H) | J14: Prof. Wage Rate | K14: Total Cost (I) x (J)
A15: APPLICATION
A16: 118(a)(2) | B16: Application for Federal Assistance | C16: SF 424 (4040-0004) | D16: 100% | E16: =D16*$E$9 -> 1,326 | F16: 1.00 | G16: =E16*F16 -> 1,326 | H16: 1.00 | I16: =IF((H16*G16)="","",(H16*G16)) -> 1,326.00 | J16: ='12 Est Prof Wage Rate'!$G$38 -> $74.03 | K16: =IF((J16*I16)="","",(J16*I16)) -> $98,164
A17: 118(a)(3) | B17: Budget Information - Construction Programs | C17: SF 424C (4040-0008) | D17: 100% | E17: 1,326 | F17: 1.00 | G17: 1,326 | H17: 3.00 | I17: 3,978.00 | J17: ='12 Est Prof Wage Rate'!$G$38 -> $74.03 | K17: $294,492
A18: 118(a)(4) | B18: Assurances - Construction Programs | C18: SF 424D (4040-0009) | D18: 100% | E18: 1,326 | F18: 1.00 | G18: 1,326 | H18: 0.25 | I18: 331.50 | J18: ='12 Est Prof Wage Rate'!$G$38 -> $74.03 | K18: $24,541
A19: AWARDEE DOCUMENTS AND CERTIFICATIONS
A20: 119(c)(3)(i); 120(c)(3)(i) | B20: Compliance Statement (Contract in excess of $10,000) | C20: RD-400-6 (0575-0201, 0189) | D20: 50% | E20: =D20*$K$9 -> 608 | F20: 1.00 | G20: =E20*F20 -> 608 | H20: 0.25 | I20: =IF((H20*G20)="","",(H20*G20)) -> 151.88 | J20: ='12 Est Prof Wage Rate'!$G$38 -> $74.03 | K20: =IF((J20*I20)="","",(J20*I20)) -> $11,243
A21: 119(d)(3) | B21: Certificate of Contractor's Release | C21: RD 1924-9 (0575-0042) | D21: 50% | E21: 608 | F21: 1.00 | G21: 608 | H21: 0.25 | I21: 151.88 | J21: ='12 Est Prof Wage Rate'!$G$38 -> $74.03 | K21: $11,243
A22: 119(d)(3) | B22: Release by Claimants | C22: RD 1924-10 (0575-0189) | D22: 50% | E22: 608 | F22: 1.00 | G22: 608 | H22: 1.00 | I22: 607.50 | J22: ='12 Est Prof Wage Rate'!$G$38 -> $74.03 | K22: $44,973
A23: 123(c)(1) | B23: Letter of Intent | C23: RD 1942-46 (0570-0021, 0061, 0062; 0572-0137; 0575-0015) | D23: 100% | E23: =D23*$K$9 -> 1,215 | F23: 1.00 | G23: =E23*F23 -> 1,215 | H23: 0.25 | I23: =IF((H23*G23)="","",(H23*G23)) -> 303.75 | J23: ='12 Est Prof Wage Rate'!$G$38 -> $74.03 | K23: =IF((J23*I23)="","",(J23*I23)) -> $22,487
A24: 123(c)(3) | B24: Disclosure of Lobbying Activities | C24: SF LLL (4040-0013) | D24: 100% | E24: =D24*$K$9 -> 1,215 | F24: 1.00 | G24: 1,215 | H24: 0.25 | I24: =IF((H24*G24)="","",(H24*G24)) -> 303.75 | J24: ='12 Est Prof Wage Rate'!$G$38 -> $74.03 | K24: =IF((J24*I24)="","",(J24*I24)) -> $22,487
A25: 123(c)(4) | B25: Assurance Agreement | C25: RD-400-4 (0575-0201, 0189) | D25: 100% | E25: 1,215 | F25: 1.00 | G25: 1,215 | H25: 0.25 | I25: 303.75 | J25: ='12 Est Prof Wage Rate'!$G$38 -> $74.03 | K25: $22,487
A26: 124(i)(1) | B26: Federal Financial Report | C26: SF 425 (4040-0014) | D26: 100% | E26: 1,215 | F26: 2.00 | G26: 2,430 | H26: 0.50 | I26: 1,215.00 | J26: ='12 Est Prof Wage Rate'!$G$38 -> $74.03 | K26: $89,947
A27: 124(g)(4) | B27: Outlay Report and Request for Reimbursement for Construction Programs | C27: SF 271 (4040-0011) | D27: 100% | E27: 1,215 | F27: 1.00 | G27: 1,215 | H27: 1.00 | I27: 1,215.00 | J27: ='12 Est Prof Wage Rate'!$G$38 -> $74.03 | K27: $89,947

Sheet 12 BHCollection RES-EEI >200
A1: RURAL BUSINESS COOPERATIVE SERVICE
A2: RURAL ENERGY FOR AMERICA PROGRAM
A3: RENEWABLE ENERGY SYSTEM (RES) AND ENERGY EFFICIENCY IMPROVEMENTS (EEI) - >$200K
A4: INFORMATION COLLECTION BURDEN HOURS
A5: OMB # 0570 - 0067
A6: ='Overall Summary'!A10 -> 2024-10-10
C8: RES | D8: EEI | E8: Total | I8: RES | J8: EEI | K8: Total
A9: Estimated No. of Total Respondents (Applicants) | C9: 1,470 | D9: 348 | E9: =SUM(C9:D9) -> 1,818 | H9: Estimated No. of Total Awards (Awardees) | I9: 1,347 | J9: 319 | K9: =SUM(I9:J9) -> 1,666
A10: Average hours per response | E10: =I12/G12 -> 3.658 | J10: Number of responses per respondent | K10: =G12/E9 -> 20.93
A12: Gray Columns have automatic formulas. DO NOT input numbers in these columns. | F12: TOTAL | G12: =SUM(G15:G53) -> 38,047 | I12: =SUM(I15:I53) -> 139,165 | K12: =SUM(K15:K53) -> 10,302,398
A13: (A) | B13: (B) | C13: (C) | D13: (D) | E13: (E) | F13: (F) | G13: (G) | H13: (H) | I13: (I) | J13: (J) | K13: (K)
A14: Regulation Reference 4280.XXX | B14: Title | C14: Form No. (If Any) | D14: % of Respondents Line Item is Applicable To | E14: Estimated # of Respondents | F14: Reports Filed Annually | G14: Total Responses (E) x (F) | H14: Estimated # of Hours Per Response (time estimated in 5 min intervals) | I14: Estimated Total Hours (G) x (H) | J14: Prof. Wage Rate | K14: Total Cost (I) x (J)
A15: OTHER REQUIREMENTS
A16: 105 | B16: Reviews and appeals | C16: written | D16: 0.50% | E16: =D16*$E$9 -> 9 | F16: 1.00 | G16: =E16*F16 -> 9 | H16: 12.00 | I16: =IF((H16*G16)="","",(H16*G16)) -> 109.08 | J16: ='12 Est Prof Wage Rate'!$G$38 -> $74.03 | K16: =IF((J16*I16)="","",(J16*I16)) -> $8,075
A17: 108(e) | B17: Discrimation Complaints | C17: written | D17: 0.50% | E17: 9 | F17: 1.00 | G17: 9 | H17: 1.00 | I17: 9.09 | J17: ='12 Est Prof Wage Rate'!$G$38 -> $74.03 | K17: $673
A18: APPLICATION
A19: 110(f) | B19: Application Withdrawal | C19: written | D19: 1% | E19: =D19*$E$9 -> 18 | F19: 1.00 | G19: =E19*F19 -> 18 | H19: 0.50 | I19: =IF((H19*G19)="","",(H19*G19)) -> 9.09 | J19: ='12 Est Prof Wage Rate'!$G$38 -> $74.03 | K19: =IF((J19*I19)="","",(J19*I19)) -> $673
A20: 112(f), (g) | B20: SAM Registration & UEI | C20: written | D20: 100% | E20: 1,818 | F20: 1.00 | G20: 1,818 | H20: 9.50 | I20: 17,271.00 | J20: ='12 Est Prof Wage Rate'!$G$38 -> $74.03 | K20: $1,278,575
A21: 116(b) | B21: Feasibility Study (RES ONLY) | C21: written | D21: 4% | E21: =D21*$C$9 -> 59 | F21: 1.00 | G21: 59 | H21: 40.00 | I21: 2,352.00 | J21: ='12 Est Prof Wage Rate'!$G$38 -> $74.03 | K21: $174,119
A22: 118(a)(1) | B22: Application for Renewable Energy Systems and Energy Efficiency Improvements Projects, Total Project Costs greater than $200,000. | C22: RD 4280-3C | D22: 100% | E22: 1,818 | F22: 1.00 | G22: 1,818 | H22: 30.00 | I22: 54,540.00 | J22: ='12 Est Prof Wage Rate'!$G$38 -> $74.03 | K22: $4,037,605
A23: 118(a)(6) | B23: Environmental Documentation | C23: written | D23: 100% | E23: 1,818 | F23: 1.00 | G23: 1,818 | H23: 6.00 | I23: 10,908.00 | J23: ='12 Est Prof Wage Rate'!$G$38 -> $74.03 | K23: $807,521
A24: 118(d) | B24: Technical Report | C24: written | D24: 36% | E24: =D24*$E$9 -> 654 | F24: 1.00 | G24: 654 | H24: 16.00 | I24: 10,471.68 | J24: ='12 Est Prof Wage Rate'!$G$38 -> $74.03 | K24: $775,220
A25: 118(d), 110(g) | B25: Energy Audit (EEI ONLY) | C25: written | D25: 100% | E25: =D25*$D$9 -> 348 | F25: 1.00 | G25: =E25*F25 -> 348 | H25: 16.00 | I25: =IF((H25*G25)="","",(H25*G25)) -> 5,568.00 | J25: ='12 Est Prof Wage Rate'!$G$38 -> $74.03 | K25: =IF((J25*I25)="","",(J25*I25)) -> $412,200
A26: 118, 121 | B26: Project Self Score | C26: written | D26: 100% | E26: =D26*$E$9 -> 1,818 | F26: 1.00 | G26: 1,818 | H26: 2.00 | I26: 3,636.00 | J26: ='12 Est Prof Wage Rate'!$G$38 -> $74.03 | K26: $269,174
A27: AWARDEE DOCUMENTS AND CERTIFICATIONS
A28: 110(g)(2) | B28: Technical Report Modifications | C28: written | D28: 1% | E28: =D28*$K$9 -> 17 | F28: 1.00 | G28: 17 | H28: 1.00 | I28: =IF((H28*G28)="","",(H28*G28)) -> 16.66 | J28: ='12 Est Prof Wage Rate'!$G$38 -> $74.03 | K28: =IF((J28*I28)="","",(J28*I28)) -> $1,233
A29: 110(h)(1) | B29: Time Extensions | C29: written | D29: 5% | E29: 83 | F29: 1.00 | G29: 83 | H29: 0.50 | I29: 41.65 | J29: ='12 Est Prof Wage Rate'!$G$38 -> $74.03 | K29: $3,083
A30: 123(b) | B30: Insurance | C30: written | D30: 100% | E30: 1,666 | F30: 1.00 | G30: 1,666 | H30: 1.00 | I30: 1,666.00 | J30: ='12 Est Prof Wage Rate'!$G$38 -> $74.03 | K30: $123,334
A31: 123(c)(2) | B31: Request for Obligation of Funds | C31: RD 1940-1 | D31: 100% | E31: 1,666 | F31: 1.00 | G31: 1,666 | H31: 0.25 | I31: 416.50 | J31: ='12 Est Prof Wage Rate'!$G$38 -> $74.03 | K31: $30,834
A32: 123(d) | B32: Evidence of matching funds | C32: written | D32: 100% | E32: 1,666 | F32: 1.00 | G32: 1,666 | H32: 1.00 | I32: 1,666.00 | J32: ='12 Est Prof Wage Rate'!$G$38 -> $74.03 | K32: $123,334
A33: 123(e) | B33: SAM Renewal | C33: written | D33: 100% | E33: 1,666 | F33: 1.00 | G33: 1,666 | H33: 1.00 | I33: 1,666.00 | J33: ='12 Est Prof Wage Rate'!$G$38 -> $74.03 | K33: $123,334
A34: 123(f) | B34: Rural Business Cooperative Service Financial Assistance Agreement | C34: RD 4280-2 | D34: 100% | E34: 1,666 | F34: 1.00 | G34: 1,666 | H34: 1.00 | I34: 1,666.00 | J34: ='12 Est Prof Wage Rate'!$G$38 -> $74.03 | K34: $123,334
A35: 123(h) | B35: Power purchase agreement (RES ONLY) | C35: written | D35: 100% | E35: =D35*$I$9 -> 1,347 | F35: 1.00 | G35: 1,347 | H35: 1.50 | I35: 2,020.50 | J35: ='12 Est Prof Wage Rate'!$G$38 -> $74.03 | K35: $149,578
A36: 124(b) | B36: Programmatic changes | C36: written | D36: 0.50% | E36: 8 | F36: 1.00 | G36: 8 | H36: 1.00 | I36: 8.33 | J36: ='12 Est Prof Wage Rate'!$G$38 -> $74.03 | K36: $617
B37: Certification for Contracts,Grants and Loans (Regarding Lobbying) - For grants over $100,000 | C37: written | D37: 75% | E37: 1,250 | F37: 1.00 | G37: 1,250 | H37: 0.25 | I37: 312.38 | J37: ='12 Est Prof Wage Rate'!$G$38 -> $74.03 | K37: $23,125
B38: Grantee acceptance of contractor work | C38: written | D38: 100% | E38: 1,666 | F38: 1.00 | G38: 1,666 | H38: 0.25 | I38: 416.50 | J38: ='12 Est Prof Wage Rate'!$G$38 -> $74.03 | K38: $30,834
A39: 119(d)(2), 120(d)(1) | B39: Contractor Certification of Final Completion (Plus 30 days for RES only projects) | C39: written | D39: 100% | E39: =D39*$K$9 -> 1,666 | F39: 1.00 | G39: 1,666 | H39: 1.00 | I39: 1,666.00 | J39: ='12 Est Prof Wage Rate'!$G$38 -> $74.03 | K39: $123,334
A40: 125(a)(3) | B40: Surety | C40: written | D40: 10% | E40: 167 | F40: 1.00 | G40: 167 | H40: 1.00 | I40: 166.60 | J40: ='12 Est Prof Wage Rate'!$G$38 -> $74.03 | K40: $12,333
A41: 125(c) | B41: Technical services (for total project cost $1,000,000 or greater) | C41: written | D41: 40% | E41: 666 | F41: 4.00 | G41: 2,666 | H41: 1.00 | I41: 2,665.60 | J41: ='12 Est Prof Wage Rate'!$G$38 -> $74.03 | K41: =IF((J41*I41)="","",(J41*I41)) -> $197,335
A42: 125(d) | B42: Final plans and specs | C42: written | D42: 10% | E42: 167 | F42: 1.00 | G42: 167 | H42: 2.00 | I42: 333.20 | J42: ='12 Est Prof Wage Rate'!$G$38 -> $74.03 | K42: $24,667
A43: 125(e ) | B43: Contruction Contract | C43: written | D43: 100% | E43: 1,666 | F43: 1.00 | G43: 1,666 | H43: 2.00 | I43: 3,332.00 | J43: ='12 Est Prof Wage Rate'!$G$38 -> $74.03 | K43: $246,669
A44: 124(a) | B44: Inspection | C44: written | D44: 25% | E44: 417 | F44: 1.00 | G44: 417 | H44: 0.50 | I44: 208.25 | J44: ='12 Est Prof Wage Rate'!$G$38 -> $74.03 | K44: $15,417
A45: REPORTING AND OTHER
A46: 124(c) | B46: Transfer of ownership | C46: written | D46: 1% | E46: =D46*$K$9 -> 8 | F46: 1.00 | G46: =E46*F46 -> 8 | H46: 0.50 | I46: =IF((H46*G46)="","",(H46*G46)) -> 4.17 | J46: ='12 Est Prof Wage Rate'!$G$38 -> $74.03 | K46: =IF((J46*I46)="","",(J46*I46)) -> $308
A47: 124(d) | B47: Disposition/bi-annual check of acquired property | C47: written | D47: 25% | E47: =D47*$K$9 -> 417 | F47: 0.50 | G47: 208 | H47: 1.00 | I47: 208.25 | J47: ='12 Est Prof Wage Rate'!$G$38 -> $74.03 | K47: $15,417
A48: 124(e) | B48: Recordkeeping | C48: written | D48: 100% | E48: =D48*$K$9 -> 1,666 | F48: 1.00 | G48: 1,666 | H48: 1.00 | I48: 1,666.00 | J48: ='12 Est Prof Wage Rate'!$G$38 -> $74.03 | K48: $123,334
A49: 124(f) | B49: Audit requirement | C49: written | D49: 1% | E49: 17 | F49: 1.00 | G49: 17 | H49: 24.00 | I49: 399.84 | J49: ='12 Est Prof Wage Rate'!$G$38 -> $74.03 | K49: =IF((J49*I49)="","",(J49*I49)) -> $29,600
A50: 124(i)(3)(i) | B50: Annual outcome project performance certification-RES | C50: 4280-3D | D50: 100% | E50: =D50*$I$9 -> 1,347 | F50: 1.00 | G50: 1,347 | H50: 0.25 | I50: 336.75 | J50: ='12 Est Prof Wage Rate'!$G$38 -> $74.03 | K50: $24,930
A51: 124(i)(3)(ii) | B51: Annual outcome project performance certification-EEI | C51: 4280-3D | D51: 100% | E51: =D51*$J$9 -> 319 | F51: 1.00 | G51: 319 | H51: 0.25 | I51: 79.75 | J51: ='12 Est Prof Wage Rate'!$G$38 -> $74.03 | K51: $5,904
A52: 124(i)(2)(i) | B52: Project performance report - semiannual | C52: written | D52: 100% | E52: =$K$9*D52 -> 1,666 | F52: 2.00 | G52: 3,332 | H52: 2.00 | I52: 6,664.00 | J52: ='12 Est Prof Wage Rate'!$G$38 -> $74.03 | K52: =IF((J52*I52)="","",(J52*I52)) -> $493,337
A53: 124(i)(2)(ii) | B53: Final Project Performance Report | C53: written | D53: 100% | E53: =$K$9*D53 -> 1,666 | F53: 2.00 | G53: =E53*F53 -> 3,332 | H53: 2.00 | I53: 6,664.00 | J53: ='12 Est Prof Wage Rate'!$G$38 -> $74.03 | K53: $493,337

Sheet 12 Not Inc BH RES-EEI >200
A1: RURAL BUSINESS COOPERATIVE SERVICE
A2: RURAL ENERGY FOR AMERICA PROGRAM
A3: RENEWABLE ENERGY SYSTEM (RES) AND ENERGY EFFICIENCY IMPROVEMENTS (EEI) - >$200K
A4: INFORMATION COLLECTION BURDEN HOURS
A5: OMB # 0570 - 0067
A6: ='Overall Summary'!A10 -> 2024-10-10
C8: RES | D8: EEI | E8: Total | I8: RES | J8: EEI | K8: Total
A9: Estimated No. of Total Respondents (Applicants) | C9: ='12 BHCollection RES-EEI >200'!C9 -> 1,470 | D9: ='12 BHCollection RES-EEI >200'!D9 -> 348 | E9: =SUM(C9:D9) -> 1,818 | H9: Estimated No. of Total Awards (Awardees) | I9: ='12 BHCollection RES-EEI >200'!I9 -> 1,347 | J9: ='12 BHCollection RES-EEI >200'!J9 -> 319 | K9: =SUM(I9:J9) -> 1,666
A10: Average hours per response | E10: =I12/G12 -> 0.816 | J10: Number of responses per respondent | K10: =G12/E9 -> 10.33
A12: Gray Columns have automatic formulas. DO NOT input numbers in these columns. | F12: TOTAL | G12: =SUM(G15:G27) -> 18,782 | I12: =SUM(I15:I27) -> 15,328 | K12: =SUM(K15:K27) -> $1,134,707
A13: (A) | B13: (B) | C13: (C) | D13: (D) | E13: (E) | F13: (F) | G13: (G) | H13: (H) | I13: (I) | J13: (J) | K13: (K)
A14: Regulation Reference 4280.XXX | B14: Title | C14: Form No. (If Any) | D14: % of Respondents Line Item is Applicable To | E14: Estimated # of Respondents | F14: Reports Filed Annually | G14: Total Responses (E) x (F) | H14: Estimated # of Hours Per Response (time estimated in 5 min intervals) | I14: Estimated Total Hours (G) x (H) | J14: Prof. Wage Rate | K14: Total Cost (I) x (J)
A15: APPLICATION
A16: 118(a)(2) | B16: Application for Federal Assistance | C16: SF 424 (4040-0004) | D16: 100% | E16: =D16*$E$9 -> 1,818 | F16: 1.00 | G16: =E16*F16 -> 1,818 | H16: 1.00 | I16: =IF((H16*G16)="","",(H16*G16)) -> 1,818.00 | J16: ='12 Est Prof Wage Rate'!$G$38 -> $74.03 | K16: =IF((J16*I16)="","",(J16*I16)) -> $134,587
A17: 118(a)(3) | B17: Budget Information - Construction Programs | C17: SF 424C (4040-0008) | D17: 100% | E17: 1,818 | F17: 1.00 | G17: 1,818 | H17: 3.00 | I17: 5,454.00 | J17: ='12 Est Prof Wage Rate'!$G$38 -> $74.03 | K17: $403,761
A18: 118(a)(4) | B18: Assurances - Construction Programs | C18: SF 424D (4040-0009) | D18: 100% | E18: 1,818 | F18: 1.00 | G18: 1,818 | H18: 0.25 | I18: 454.50 | J18: ='12 Est Prof Wage Rate'!$G$38 -> $74.03 | K18: $33,647
A19: AWARDEE DOCUMENTS AND CERTIFICATIONS
A20: 119(c)(3)(i); 120(c)(3)(i) | B20: Compliance Statement (Contract in excess of $10,000) | C20: RD-400-6 (0575-0201, 0189) | D20: 75% | E20: =D20*$K$9 -> 1,250 | F20: 1.00 | G20: =E20*F20 -> 1,250 | H20: 0.25 | I20: =IF((H20*G20)="","",(H20*G20)) -> 312.38 | J20: ='12 Est Prof Wage Rate'!$G$38 -> $74.03 | K20: =IF((J20*I20)="","",(J20*I20)) -> $23,125
B21: Certificate of Contractor's Release | C21: RD 1924-9 (0575-0042) | D21: 75% | E21: 1,250 | F21: 1.00 | G21: 1,250 | H21: 0.25 | I21: 312.38 | J21: ='12 Est Prof Wage Rate'!$G$38 -> $74.03 | K21: $23,125
B22: Release by Claimants | C22: RD 1924-10 (0575-0189) | D22: 75% | E22: 1,250 | F22: 1.00 | G22: 1,250 | H22: 1.00 | I22: 1,249.50 | J22: ='12 Est Prof Wage Rate'!$G$38 -> $74.03 | K22: $92,501
A23: 123(c)(1) | B23: Letter of Intent | C23: RD 1942-46 (0570-0021, 0061, 0062; 0572-0137; 0575-0015) | D23: 100% | E23: =D23*$K$9 -> 1,666 | F23: 1.00 | G23: =E23*F23 -> 1,666 | H23: 1.00 | I23: =IF((H23*G23)="","",(H23*G23)) -> 1,666.00 | J23: ='12 Est Prof Wage Rate'!$G$38 -> $74.03 | K23: =IF((J23*I23)="","",(J23*I23)) -> $123,334
A24: 123(c)(3) | B24: Disclosure of Lobbying Activities | C24: SF LLL (4040-0013) | D24: 100% | E24: =D24*$K$9 -> 1,666 | F24: 1.00 | G24: 1,666 | H24: 0.25 | I24: =IF((H24*G24)="","",(H24*G24)) -> 416.50 | J24: ='12 Est Prof Wage Rate'!$G$38 -> $74.03 | K24: =IF((J24*I24)="","",(J24*I24)) -> $30,834
A25: 123(c)(4) | B25: Assurance Agreement | C25: RD-400-4 (0575-0201, 0189) | D25: 75% | E25: 1,250 | F25: 1.00 | G25: 1,250 | H25: 0.25 | I25: 312.38 | J25: ='12 Est Prof Wage Rate'!$G$38 -> $74.03 | K25: $23,125
A26: 124(i)(1) | B26: Federal Financial Report | C26: SF 425 (4040-0014) | D26: 100% | E26: 1,666 | F26: 2.00 | G26: 3,332 | H26: 0.50 | I26: 1,666.00 | J26: ='12 Est Prof Wage Rate'!$G$38 -> $74.03 | K26: $123,334
A27: 124(g)(4) | B27: Outlay Report and Request for Reimbursement for Construction Programs | C27: SF 271 (4040-0011) | D27: 100% | E27: 1,666 | F27: 1.00 | G27: 1,666 | H27: 1.00 | I27: 1,666.00 | J27: ='12 Est Prof Wage Rate'!$G$38 -> $74.03 | K27: $123,334

Sheet 12 BHCollection EA REDA
A1: RURAL BUSINESS COOPERATIVE SERVICE
A2: RURAL ENERGY FOR AMERICA PROGRAM
A3: ENERGY AUDIT (EA) AND RENEWABLE ENERGY DEVELOPMENT ASSITANCE (REDA)
A4: INFORMATION COLLECTION BURDEN HOURS
A5: OMB # 0570 - 0067
A6: ='Overall Summary'!A10 -> 2024-10-10
A8: Estimated No. of Total Respondents (Applicants) | C8: 28 | J8: Estimated No. of Total Awards (Awardees) | K8: 22
A9: Average hours per response | C9: =I10/G10 -> 3.232 | J9: Number of responses per respondent | K9: =G10/C8 -> 10.65
A10: Gray Columns have automatic formulas. DO NOT input numbers in these columns. | F10: TOTAL | G10: =SUM(G14:G32) -> 298 | I10: =SUM(I14:I32) -> 964 | K10: =SUM(K14:K32) -> $71,355
A11: (A) | B11: (B) | C11: (C) | D11: (D) | E11: (E) | F11: (F) | G11: (G) | H11: (H) | I11: (I) | J11: (J) | K11: (K)
A12: Regulation Reference 4280.XXX | B12: Title | C12: Form No. (If Any) | D12: % of Respondents Line Item is Applicable To | E12: Estimated # of Respondents | F12: Reports Filed Annually | G12: Total Responses (E) x (F) | H12: Estimated # of Hours Per Response (time estimated in 5 min intervals) | I12: Estimated Total Hours (G) x (H) | J12: Prof. Wage Rate | K12: Total Cost (I) x (J)
A13: OTHER REQUIREMENTS
A14: 105 | B14: Reviews and appeals | C14: written | D14: 4.0% | E14: =$C$8*D14 -> 1 | F14: 1 | G14: =E14*F14 -> 1 | H14: 12.00 | I14: =IF((H14*G14)="","",(H14*G14)) -> 13 | J14: ='12 Est Prof Wage Rate'!$G$38 -> $74.03 | K14: =IF((J14*I14)="","",(J14*I14)) -> $995
A15: 108(e) | B15: Discrimation Complaints | C15: written | D15: 4.0% | E15: =D15*$C$8 -> 1 | F15: 1 | G15: =E15*F15 -> 1 | H15: 1.00 | I15: 1 | J15: ='12 Est Prof Wage Rate'!$G$38 -> $74.03 | K15: $83
A16: APPLICATION
A17: 110(f) | B17: Application Withdrawal | C17: written | D17: 4% | E17: 1 | F17: 1 | G17: 1 | H17: 0.50 | I17: =IF((H17*G17)="","",(H17*G17)) -> 1 | J17: ='12 Est Prof Wage Rate'!$G$38 -> $74.03 | K17: =IF((J17*I17)="","",(J17*I17)) -> $41
A18: 112(f), (g) | B18: SAM number & UEI | C18: written | D18: 100% | E18: 28 | F18: 1 | G18: 28 | H18: 9.50 | I18: 266 | J18: ='12 Est Prof Wage Rate'!$G$38 -> $74.03 | K18: $19,692
A19: 153(b)(3) | B19: Data to Assist in Assessment of USDA Compliance with Civil Rights Laws | C19: written | D19: 100% | E19: 28 | F19: 1 | G19: 28 | H19: 0.08 | I19: 2 | J19: ='12 Est Prof Wage Rate'!$G$38 -> $74.03 | K19: $166
A20: 153(b)(4) | B20: Certification that Applicant is a legal entity in good standing | C20: written | D20: 100% | E20: 28 | F20: 1 | G20: 28 | H20: 0.08 | I20: 2 | J20: ='12 Est Prof Wage Rate'!$G$38 -> $74.03 | K20: $172
A21: 153(b)(5) | B21: Association or Relationship with Rural Development Employees Certification | C21: written | D21: 100% | E21: 28 | F21: 1 | G21: 28 | H21: 0.08 | I21: 2 | J21: ='12 Est Prof Wage Rate'!$G$38 -> $74.03 | K21: $166
A22: 153(b)(6) | B22: Scope of work | C22: written | D22: 100% | E22: 28 | F22: 1 | G22: 28 | H22: 20.00 | I22: 560 | J22: ='12 Est Prof Wage Rate'!$G$38 -> $74.03 | K22: $41,457
A23: AWARDEE DOCUMENTS AND CERTIFICATIONS
A24: 158(a) | B24: Insurance | C24: written | D24: 100% | E24: =D24*$K$8 -> 22 | F24: 1 | G24: =E24*F24 -> 22 | H24: 0.50 | I24: =IF((H24*G24)="","",(H24*G24)) -> 11 | J24: ='12 Est Prof Wage Rate'!$G$38 -> $74.03 | K24: =IF((J24*I24)="","",(J24*I24)) -> $814
A25: 123(c)(2) | B25: Request for Obligation of Funds | C25: RD 1940-1 | D25: 100% | E25: =D25*$K$8 -> 22 | F25: 1 | G25: 22 | H25: 0.25 | I25: =IF((H25*G25)="","",(H25*G25)) -> 6 | J25: ='12 Est Prof Wage Rate'!$G$38 -> $74.03 | K25: =IF((J25*I25)="","",(J25*I25)) -> $407
A26: 123(d) | B26: Evidence of matching funds | C26: written | D26: 100% | E26: 22 | F26: 1 | G26: 22 | H26: 1.00 | I26: 22 | J26: ='12 Est Prof Wage Rate'!$G$38 -> $74.03 | K26: $1,629
A27: 149(d)(2) | B27: SAM Renewal | C27: written | D27: 100% | E27: =D27*$K$8 -> 22 | F27: 1 | G27: 22 | H27: 1.00 | I27: 22 | J27: ='12 Est Prof Wage Rate'!$G$38 -> $74.03 | K27: $1,629
A28: 123(f) | B28: Rural Business Cooperative Service Financial Assistance Agreement | C28: RD 4280-2 | D28: 100% | E28: 22 | F28: 1 | G28: 22 | H28: 1.00 | I28: 22 | J28: ='12 Est Prof Wage Rate'!$G$38 -> $74.03 | K28: $1,629
A29: 124(b) | B29: Programmatic changes | C29: written | D29: 100% | E29: 22 | F29: 1 | G29: 22 | H29: 0.50 | I29: 11 | J29: ='12 Est Prof Wage Rate'!$G$38 -> $74.03 | K29: =IF((J29*I29)="","",(J29*I29)) -> $814
A30: REPORTING AND OTHER
A31: 124(c) | B31: Transfer of ownership | C31: written | D31: 4% | E31: =D31*$K$8 -> 1 | F31: 1 | G31: =E31*F31 -> 1 | H31: 0.50 | I31: =IF((H31*G31)="","",(H31*G31)) -> 0 | J31: ='12 Est Prof Wage Rate'!$G$38 -> $74.03 | K31: =IF((J31*I31)="","",(J31*I31)) -> $33
A32: 124 (e) | B32: Recordkeeping | C32: written | D32: 100% | E32: =D32*$K$8 -> 22 | F32: 1 | G32: 22 | H32: 1.00 | I32: 22 | J32: ='12 Est Prof Wage Rate'!$G$38 -> $74.03 | K32: $1,629
A33: 159 & 124(f) | B33: Audit requirement | C33: written | D33: 4% | E33: =D33*$K$8 -> 1 | F33: 1 | G33: =E33*F33 -> 1 | H33: 24.00 | I33: =IF((H33*G33)="","",(H33*G33)) -> 21 | J33: ='12 Est Prof Wage Rate'!$G$38 -> $74.03 | K33: =IF((J33*I33)="","",(J33*I33)) -> $1,564
A34: 159(d) | B34: Annual outcome project performance certification | C34: 4280-3D | D34: 100% | E34: 22 | F34: 1 | G34: 22 | H34: 1.00 | I34: 22 | J34: ='12 Est Prof Wage Rate'!$G$38 -> $74.03 | K34: $1,629
A35: 159 (b) | B35: Project performance report - semiannual | C35: written | D35: 100% | E35: 22 | F35: 2 | G35: 44 | H35: 1.00 | I35: 44 | J35: ='12 Est Prof Wage Rate'!$G$38 -> $74.03 | K35: $3,257
A36: 159 (c) | B36: Final Project Performance Report | C36: written | D36: 100% | E36: 22 | F36: 1 | G36: 22 | H36: 1.00 | I36: 22 | J36: ='12 Est Prof Wage Rate'!$G$38 -> $74.03 | K36: $1,629

Sheet 12 Not Inc BH EA REDA
A1: ='12 BHCollection EA REDA'!A1 -> RURAL BUSINESS COOPERATIVE SERVICE
A2: ='12 BHCollection EA REDA'!A2 -> RURAL ENERGY FOR AMERICA PROGRAM
A3: ='12 BHCollection EA REDA'!A3 -> ENERGY AUDIT (EA) AND RENEWABLE ENERGY DEVELOPMENT ASSITANCE (REDA)
A4: ='12 BHCollection EA REDA'!A4 -> INFORMATION COLLECTION BURDEN HOURS
A5: ='12 BHCollection EA REDA'!A5 -> OMB # 0570 - 0067
A6: ='Overall Summary'!A10 -> 2024-10-10
A8: Estimated No. of Total Respondents (Applicants) | C8: ='12 BHCollection EA REDA'!C8 -> 28 | J8: Estimated No. of Total Awards (Awardees) | K8: ='12 BHCollection EA REDA'!K8 -> 22
A9: Average hours per response | C9: =I10/G10 -> 1.156 | J9: Number of responses per respondent | K9: =G10/C8 -> 9.86
A10: Gray Columns have automatic formulas. DO NOT input numbers in these columns. | F10: TOTAL | G10: =SUM(G14:G21) -> 276 | I10: =SUM(I14:I21) -> 319 | K10: =SUM(K14:K21) -> $23,617
A11: (A) | B11: (B) | C11: (C) | D11: (D) | E11: (E) | F11: (F) | G11: (G) | H11: (H) | I11: (I) | J11: (J) | K11: (K)
A12: Regulation Reference 4280.XXX | B12: Title | C12: Form No. (If Any) | D12: % of Respondents Line Item is Applicable To | E12: Estimated # of Respondents | F12: Reports Filed Annually | G12: Total Responses (E) x (F) | H12: Estimated # of Hours Per Response (time estimated in 5 min intervals) | I12: Estimated Total Hours (G) x (H) | J12: Prof. Wage Rate | K12: Total Cost (I) x (J)
A13: APPLICATION
A14: 153 (b)(1) | B14: Application for Federal Assistance | C14: SF 424 (4040-0004) | D14: 100% | E14: =D14*$C$8 -> 28 | F14: 1 | G14: =E14*F14 -> 28 | H14: 1 | I14: =IF((H14*G14)="","",(H14*G14)) -> 28 | J14: ='12 Est Prof Wage Rate'!$G$38 -> $74.03 | K14: =IF((J14*I14)="","",(J14*I14)) -> $2,073
A15: 153 (b)(2) | B15: Budget Information - Non-Construction Programs | C15: SF 424A (4040-0006) | D15: 100% | E15: =D15*$C$8 -> 28 | F15: 1 | G15: =E15*F15 -> 28 | H15: 3 | I15: =IF((H15*G15)="","",(H15*G15)) -> 84 | J15: ='12 Est Prof Wage Rate'!$G$38 -> $74.03 | K15: =IF((J15*I15)="","",(J15*I15)) -> $6,219
A16: AWARDEE DOCUMENTS AND CERTIFICATIONS
A17: 123(c)(1) | B17: Letter of Intent | C17: RD 1942-46 (0570-0021, 0061, 0062; 0572-0137; 0575-0015) | D17: 100% | E17: =D17*$K$8 -> 22 | F17: 1 | G17: =E17*F17 -> 22 | H17: 1.00 | I17: =IF((H17*G17)="","",(H17*G17)) -> 22 | J17: ='12 Est Prof Wage Rate'!$G$38 -> $74.03 | K17: =IF((J17*I17)="","",(J17*I17)) -> $1,629
A18: 123(c)(3) | B18: Disclosure of Lobbying Activities | C18: SF LLL (4040-0013) | D18: 100% | E18: =D18*$K$8 -> 22 | F18: 1 | G18: =E18*F18 -> 22 | H18: 0.16 | I18: =IF((H18*G18)="","",(H18*G18)) -> 4 | J18: ='12 Est Prof Wage Rate'!$G$38 -> $74.03 | K18: =IF((J18*I18)="","",(J18*I18)) -> $261
A19: 158 | B19: Assurance Agrement | C19: RD-400-4 (0575-0201, 0189) | D19: 100% | E19: =D19*$K$8 -> 22 | F19: 1 | G19: =E19*F19 -> 22 | H19: 0.25 | I19: =IF((H19*G19)="","",(H19*G19)) -> 6 | J19: ='12 Est Prof Wage Rate'!$G$38 -> $74.03 | K19: =IF((J19*I19)="","",(J19*I19)) -> $407
A20: 124(i)(1) | B20: Federal Financial Report | C20: SF 425 (4040-0014) | D20: 100% | E20: =D20*$K$8 -> 22 | F20: 2 | G20: =E20*F20 -> 44 | H20: 1.5 | I20: =IF((H20*G20)="","",(H20*G20)) -> 66 | J20: ='12 Est Prof Wage Rate'!$G$38 -> $74.03 | K20: =IF((J20*I20)="","",(J20*I20)) -> $4,886
A21: 159 (a) | B21: Request for Advance or Reimbursement | C21: SF-270 (4040-0012) | D21: 100% | E21: =D21*$K$8 -> 22 | F21: 5 | G21: =E21*F21 -> 110 | H21: 1 | I21: =IF((H21*G21)="","",(H21*G21)) -> 110 | J21: ='12 Est Prof Wage Rate'!$G$38 -> $74.03 | K21: =IF((J21*I21)="","",(J21*I21)) -> $8,143

Sheet 12 BHCollection TAG
A1: RURAL BUSINESS COOPERATIVE SERVICE
A2: RURAL ENERGY FOR AMERICA PROGRAM
A3: TECHNICAL ASSISTANCE GRANT PROGRAM
A4: INFORMATION COLLECTION BURDEN HOURS
A5: OMB # 0570 - 0067
A6: ='Overall Summary'!A10 -> 2024-10-10
A8: Estimated No. of Total Respondents (Applicants) | C8: 389 | J8: Estimated No. of Total Awards (Awardees) | K8: 116
A9: Average hours per response | C9: =I10/G10 -> 2.764 | J9: Number of responses per respondent | K9: =G10/C8 -> 6.09
A10: Gray Columns have automatic formulas. DO NOT input numbers in these columns. | F10: TOTAL | G10: =SUM(G13:G25) -> 2,368 | I10: =SUM(I13:I25) -> 6,546 | K10: =SUM(K13:K25) -> $484,607
A11: (A) | B11: (B) | C11: (C) | D11: (D) | E11: (E) | F11: (F) | G11: (G) | H11: (H) | I11: (I) | J11: (J) | K11: (K)
A12: REAP TAG NOFO Reference | B12: Title | C12: Form No. (If Any) | D12: % of Respondents Line Item is Applicable To | E12: Estimated # of Respondents | F12: Reports Filed Annually | G12: Total Responses (E) x (F) | H12: Estimated # of Hours Per Response (time estimated in 5 min intervals) | I12: Estimated Total Hours (G) x (H) | J12: Prof. Wage Rate | K12: Total Cost (I) x (J)
A13: APPLICATION
A14: Sec. D.3 | B14: SAM Registration & UEI | C14: written | D14: 100% | E14: =D14*$C$8 -> 389 | F14: 1 | G14: =E14*F14 -> 389 | H14: 9.50 | I14: =IF((H14*G14)="","",(H14*G14)) -> 3,696 | J14: ='12 Est Prof Wage Rate'!$G$38 -> $74.03 | K14: =IF((J14*I14)="","",(J14*I14)) -> $273,578
A15: Sec. D.2(e) | B15: Certification that Applicant is a legal entity in good standing | C15: written | D15: 100% | E15: 389 | F15: 1 | G15: 389 | H15: 0.08 | I15: 32 | J15: ='12 Est Prof Wage Rate'!$G$38 -> $74.03 | K15: $2,390
A16: Sec. D.2(f) | B16: Association or Relationship with Rural Development Employees Certification | C16: written | D16: 100% | E16: 389 | F16: 1 | G16: 389 | H16: 0.08 | I16: 32 | J16: ='12 Est Prof Wage Rate'!$G$38 -> $74.03 | K16: $2,390
A17: Sec. D.2(g) | B17: Scope of Work | C17: written | D17: 100% | E17: 389 | F17: 1 | G17: 389 | H17: 5.00 | I17: 1,945 | J17: ='12 Est Prof Wage Rate'!$G$38 -> $74.03 | K17: $143,989
A18: AWARDEE DOCUMENTS AND CERTIFICATIONS
A19: Sec. F.2(a) | B19: Request for Obligation of Funds | C19: RD 1940-1 | D19: 100% | E19: =D19*$K$8 -> 116 | F19: 1 | G19: 116 | H19: 0.25 | I19: =IF((H19*G19)="","",(H19*G19)) -> 29 | J19: ='12 Est Prof Wage Rate'!$G$38 -> $74.03 | K19: =IF((J19*I19)="","",(J19*I19)) -> $2,147
B20: RBCS Financial Assistance Agreement | C20: RD 4280-2 | D20: 100% | E20: =D20*$K$8 -> 116 | F20: 1 | G20: 116 | H20: 2.00 | I20: 232 | J20: ='12 Est Prof Wage Rate'!$G$38 -> $74.03 | K20: $17,175
A21: Sec. D.3 | B21: SAM Renewal | C21: written | D21: 100% | E21: =D21*$K$8 -> 116 | F21: 1 | G21: =E21*F21 -> 116 | H21: 1.00 | I21: =IF((H21*G21)="","",(H21*G21)) -> 116 | J21: ='12 Est Prof Wage Rate'!$G$38 -> $74.03 | K21: =IF((J21*I21)="","",(J21*I21)) -> $8,587
A22: REPORTING AND OTHER
A23: Sec. F.4(a)(1) | B23: Project performance report - semiannual | C23: written | D23: 100% | E23: 116 | F23: 2 | G23: 232 | H23: 1.00 | I23: 232 | J23: ='12 Est Prof Wage Rate'!$G$38 -> $74.03 | K23: $17,175
A24: Sec. F.4(a)(2) | B24: Final Project Status Report | C24: written | D24: 100% | E24: 116 | F24: 1 | G24: 116 | H24: 1.00 | I24: 116 | J24: ='12 Est Prof Wage Rate'!$G$38 -> $74.03 | K24: $8,587
A25: Sec. F.4(a)(3) | B25: Annual outcome project performance certification | C25: written | D25: 100% | E25: 116 | F25: 1 | G25: 116 | H25: 1.00 | I25: 116 | J25: ='12 Est Prof Wage Rate'!$G$38 -> $74.03 | K25: $8,587

Sheet 12 Not Inc BH TAG
A1: ='12 BHCollection EA REDA'!A1 -> RURAL BUSINESS COOPERATIVE SERVICE
A2: ='12 BHCollection EA REDA'!A2 -> RURAL ENERGY FOR AMERICA PROGRAM
A3: TECHNICAL ASSISTANCE GRANT PROGRAM
A4: ='12 BHCollection EA REDA'!A4 -> INFORMATION COLLECTION BURDEN HOURS
A5: ='12 BHCollection EA REDA'!A5 -> OMB # 0570 - 0067
A6: ='Overall Summary'!A10 -> 2024-10-10
A8: Estimated No. of Total Respondents (Applicants) | C8: ='12 BHCollection TAG'!C8 -> 389 | J8: Estimated No. of Total Awards (Awardees) | K8: ='12 BHCollection TAG'!K8 -> 116
A9: Average hours per response | C9: =I10/G10 -> 0.793 | J9: Number of responses per respondent | K9: =G10/C8 -> 5.49
A10: Gray Columns have automatic formulas. DO NOT input numbers in these columns. | F10: TOTAL | G10: =SUM(G14:G22) -> 2,136 | I10: =SUM(I14:I22) -> 1,694 | K10: =SUM(K14:K22) -> $125,423
A11: (A) | B11: (B) | C11: (C) | D11: (D) | E11: (E) | F11: (F) | G11: (G) | H11: (H) | I11: (I) | J11: (J) | K11: (K)
A12: REAP TAG NOFO Reference | B12: Title | C12: Form No. (If Any) | D12: % of Respondents Line Item is Applicable To | E12: Estimated # of Respondents | F12: Reports Filed Annually | G12: Total Responses (E) x (F) | H12: Estimated # of Hours Per Response (time estimated in 5 min intervals) | I12: Estimated Total Hours (G) x (H) | J12: Prof. Wage Rate | K12: Total Cost (I) x (J)
A13: APPLICATION
A14: Sec. D.2(a) | B14: Application for Federal Assistance | C14: SF 424 (4040-0004) | D14: 100% | E14: =D14*$C$8 -> 389 | F14: 1 | G14: =E14*F14 -> 389 | H14: 1 | I14: =IF((H14*G14)="","",(H14*G14)) -> 389 | J14: ='12 Est Prof Wage Rate'!$G$38 -> $74.03 | K14: =IF((J14*I14)="","",(J14*I14)) -> $28,798
A15: Sec. D.2(b) | B15: Budget Information - Non Construction Program | C15: SF 424A (4040-0006) | D15: 100% | E15: =D15*$C$8 -> 389 | F15: 1 | G15: =E15*F15 -> 389 | H15: 2 | I15: =IF((H15*G15)="","",(H15*G15)) -> 778 | J15: ='12 Est Prof Wage Rate'!$G$38 -> $74.03 | K15: =IF((J15*I15)="","",(J15*I15)) -> $57,595
A16: AWARDEE DOCUMENTS AND CERTIFICATIONS
A17: Sec. F.2(b) | B17: Letter of Intent to Meet Conditions | C17: RD 1942-46 (0570-0021, 0061, 0062; 0572-0137; 0575-0015) | D17: 100% | E17: =D17*$K$8 -> 116 | F17: 1 | G17: =E17*F17 -> 116 | H17: 1.00 | I17: =IF((H17*G17)="","",(H17*G17)) -> 116 | J17: ='12 Est Prof Wage Rate'!$G$38 -> $74.03 | K17: =IF((J17*I17)="","",(J17*I17)) -> $8,587
A18: Sec. F.2(c) | B18: Disclosure of Lobbying Activities | C18: SF LLL (4040-0013) | D18: 100% | E18: =D18*$K$8 -> 116 | F18: 1 | G18: =E18*F18 -> 116 | H18: 0.17 | I18: =IF((H18*G18)="","",(H18*G18)) -> 20 | J18: ='12 Est Prof Wage Rate'!$G$38 -> $74.03 | K18: =IF((J18*I18)="","",(J18*I18)) -> $1,460
A19: Sec. D.2(c) | B19: Assurance Agreement (Application) | C19: RD-400-4 (0575-0201, 0189) | D19: 100% | E19: 389 | F19: 1 | G19: 389 | H19: 0.25 | I19: 97 | J19: ='12 Est Prof Wage Rate'!$G$38 -> $74.03 | K19: $7,199
A20: Sec. F.4(a)(1) | B20: Federal Financial Report | C20: SF 425 (4040-0014) | D20: 100% | E20: =D20*$K$8 -> 116 | F20: 2 | G20: =E20*F20 -> 232 | H20: 0.5 | I20: =IF((H20*G20)="","",(H20*G20)) -> 116 | J20: ='12 Est Prof Wage Rate'!$G$38 -> $74.03 | K20: =IF((J20*I20)="","",(J20*I20)) -> $8,587
A21: Sec. F.2(d) | B21: Request for Advance or Reimbursement | C21: SF-270 (4040-0012) | D21: 100% | E21: =D21*$K$8 -> 116 | F21: 1 | G21: =E21*F21 -> 116 | H21: 1 | I21: =IF((H21*G21)="","",(H21*G21)) -> 116 | J21: ='12 Est Prof Wage Rate'!$G$38 -> $74.03 | K21: =IF((J21*I21)="","",(J21*I21)) -> $8,587
A22: Sec. D.2(d) | B22: Equal Opportunity Agreement | C22: RD 400-1 (0575-0201, 0189) | D22: 100% | E22: 389 | F22: 1 | G22: 389 | H22: 0.16 | I22: 62 | J22: ='12 Est Prof Wage Rate'!$G$38 -> $74.03 | K22: $4,608

Sheet 12 Est Prof Wage Rate
A1: ='12 BHCollection EA REDA'!A1 -> RURAL BUSINESS COOPERATIVE SERVICE
A2: ='12 BHCollection EA REDA'!A2 -> RURAL ENERGY FOR AMERICA PROGRAM
A3: ='12 BHCollection EA REDA'!A3 -> ENERGY AUDIT (EA) AND RENEWABLE ENERGY DEVELOPMENT ASSITANCE (REDA)
A4: ='12 BHCollection RES-EEI<80K'!A3 -> RENEWABLE ENERGY SYSTEM (RES) AND ENERGY EFFICIENCY IMPROVEMENTS (EEI) - <$80K
A5: ='12 BHCollection RES-EEI 80><200'!A3 -> RENEWABLE ENERGY SYSTEM (RES) AND ENERGY EFFICIENCY IMPROVEMENTS (EEI) - $80K> <$200K
A6: ='12 BHCollection RES-EEI >200'!A3 -> RENEWABLE ENERGY SYSTEM (RES) AND ENERGY EFFICIENCY IMPROVEMENTS (EEI) - >$200K
A7: ='12 BHCollection EA REDA'!A4 -> INFORMATION COLLECTION BURDEN HOURS
A8: ='12 BHCollection EA REDA'!A5 -> OMB # 0570 - 0067
A9: ='12 BHCollection EA REDA'!A6 -> 2024-10-10
A11: Instructions:
A12: 1. Use the U.S. Bureau of Labor Statistics Occupational Emplyment and Wage Statistics Link below to complete Columns A, B, C for the table below.
A13: a. Click the link: | B13: https://www.bls.gov/oes/tables.htm
A14: b. Under the latest Month Year (May 2023) click Occupation Profiles
A15: c. Use the Occupational Titles to choose which professions (A) need to be added to the table below. You can more than one occupation or just one.
A16: d. The code in front of each Occupational Title is the Occupation Code that goes in (B) for the table below.
A17: e. When you click on each Occupational Titles, choose the Mean Hourly Wage to input in (C) for the table below.
A18: 2. Use the U.S. Bureau of Labor Economic News Release, Employer Costs for Employee Compension to complete Column D for the table below.
A19: a. Click the link: | B19: https://www.bls.gov/news.release/ecec.toc.htm
A20: b. Choose "The PDF verison of the news release" link
A21: c. The latest (September 10, 2024) News Release for Employer Costs for Employee Compensation - June 2024 opens in separate tab.
A22: d. On first page, second paragraph use the benefit costs % of: | D22: 29.70%
A23: 3. For each profession fill in the % for (F). The total for the column should be 100%.
A24: a. Note that if there is only one profession then (F) would be 100%.
A26: Gray Columns have automatic formulas. DO NOT input numbers in these columns.
A27: (A) | B27: (B) | C27: (C) | D27: (D) | E27: (E) | F27: (F) | G27: (G)
A28: Profession | B28: Bureau of Labor Occupation Code 1.d | C28: Mean Wage 1.e | D28: Benefits 2 (C) * (2.d) | E28: Total Hourly Wage (C ) + (D) | F28: % Time Spent on Burden | G28: Weighted Hourly Salary (E) * (F)
A29: Farmers, Ranchers, and Other Agricultural Managers | B29: 11-9013 | C29: $43.35 | D29: =IF(C29=0,"",(C29*$D$22)) -> $12.87 | E29: =IF(SUM(C29:D29)=0,"",SUM(C29:D29)) -> $56.22 | F29: 40% | G29: =IF(E29="","",(E29*F29)) -> $22.49
A30: Management Occupations for Rural Small Business Owners | B30: 11-0000 | C30: $66.23 | D30: =IF(C30=0,"",(C30*$D$22)) -> $19.67 | E30: =IF(SUM(C30:D30)=0,"",SUM(C30:D30)) -> $85.90 | F30: 60% | G30: =IF(E30="","",(E30*F30)) -> $51.54
A38: TOTAL | D38: =IF(C38=0,"",(C38*#REF!)) ->  | F38: =SUM(F29:F37) -> 100% | G38: =SUM(G29:G37) -> $74.03

Sheet 14 Annual$FedGovEst RES-EEI <80
A1: ='12 BHCollection EA REDA'!A1 -> RURAL BUSINESS COOPERATIVE SERVICE
A2: ='12 BHCollection EA REDA'!A2 -> RURAL ENERGY FOR AMERICA PROGRAM
A3: ='12 BHCollection RES-EEI<80K'!A3 -> RENEWABLE ENERGY SYSTEM (RES) AND ENERGY EFFICIENCY IMPROVEMENTS (EEI) - <$80K
A4: ='12 BHCollection EA REDA'!A4 -> INFORMATION COLLECTION BURDEN HOURS
A5: ='12 BHCollection EA REDA'!A5 -> OMB # 0570 - 0067
A6: ='12 BHCollection EA REDA'!A6 -> 2024-10-10
A8: 1. OPM GS & SES Pay Tables:
A9: Click Link | B9: Pay & Leave (opm.gov)
A10: Click "pay tables" from first paragraph
A11: Click current Year at top under Salaries & Wages
A13: a. OPM GS Pay Tables: Under "General Schedule (GS) & Locality Pay Tables" click 20## GS Pay Tables (ex. 2024 GS Pay Tables)
A14: Then choose Annual Rate Table for St. Louis - St. Charles - Farminton, MO-IL
A16: b. OPM SES Schedules: Under "Executive & Senior Level Employee Pay Tables" click "Rates of Pay for the Executive Schedule"
A17: Then choose Annual Rate Table for Basic Rates of Pay for Members of the Senior Executive Service.
A19: 2. Benefit % (OMB Memo M-08 13) | B19: https://www.whitehouse.gov/wp-content/uploads/legacy_drupal_files/omb/memoranda/2008/m08-13.pdf | K19: 36.25%
A21: Gray & Blue Columns have automatic formulas. DO NOT input numbers in these columns. | G21: Total | H21: =H23+H27+H32+H36 -> 22.75 | I21: =I23+I27+I32+I36 -> $1,494.97 | K21: =K23+K27+K32+K36 -> $1,549,159.05
A22: Staff Position | B22: GS Grade | C22: GS Step | D22: GS Salary | E22: Hourly Rate Calc | F22: Benefits Calc | G22: Total Salary Rate Calc | H22: Hours Required | I22: Cost Subtotals | J22: # of Responses | K22: Total Costs
A23: Other Requirements | H23: =SUM(H24:H26) -> 9.00 | I23: =SUM(I24:I26) -> $596.69 | J23: ='12 BHCollection RES-EEI<80K'!E9 -> 1,054 | K23: =J23*I23 -> $628,906.95
A24: Program Director - State Office | B24: 13 | C24: 5 | D24: $120,218 | E24: =(D24/52)/40 -> $57.80 | F24: =E24*$K$19 -> $20.95 | G24: =E24+F24 -> $78.75 | H24: 1.00 | I24: =H24*G24 -> $78.75
A25: Loan Specialist - State Office | B25: 12 | C25: 5 | D25: $100,926 | E25: =(D25/52)/40 -> $48.52 | F25: =E25*$K$19 -> $17.59 | G25: =E25+F25 -> $66.11 | H25: 7.00 | I25: =H25*G25 -> $462.78
A26: Loan Specialist - State Office | B26: 11 | C26: 5 | D26: $84,204 | E26: $40.48 | F26: $14.67 | G26: $55.16 | H26: 1.00 | I26: $55.16
A27: Application | H27: =SUM(H28:H31) -> 9.00 | I27: =SUM(I28:I31) -> $596.69 | J27: =J23 -> 1,054 | K27: =J27*I27 -> $628,906.95
A28: Program Director - State Office | B28: 13 | C28: 5 | D28: $120,218 | E28: =(D28/52)/40 -> $57.80 | F28: =E28*$K$19 -> $20.95 | G28: =E28+F28 -> $78.75 | H28: 1.00 | I28: =H28*G28 -> $78.75
A29: Loan Specialist - State Office | B29: 12 | C29: 5 | D29: $100,926 | E29: =(D29/52)/40 -> $48.52 | F29: =E29*$K$19 -> $17.59 | G29: =E29+F29 -> $66.11 | H29: 4.00 | I29: =H29*G29 -> $264.45
A30: Loan Specialist - State Office | B30: 11 | C30: 5 | D30: $84,204 | E30: $40.48 | F30: $14.67 | G30: $55.16 | H30: 1.00 | I30: $55.16
A31: State Environmental Coordinator - State Office | B31: 12 | C31: 5 | D31: $100,926 | E31: $48.52 | F31: =E31*$K$19 -> $17.59 | G31: $66.11 | H31: 3.00 | I31: $198.33
A32: Awardee Documents and Certifications | H32: =SUM(H33:H35) -> 2.50 | I32: =SUM(I33:I35) -> $160.64 | J32: ='12 BHCollection RES-EEI<80K'!K9 -> 966 | K32: =J32*I32 -> $155,181.46
A33: Program Director - State Office | B33: 13 | C33: 5 | D33: $120,218 | E33: =(D33/52)/40 -> $57.80 | F33: =E33*$K$19 -> $20.95 | G33: =E33+F33 -> $78.75 | H33: 0.50 | I33: =H33*G33 -> $39.37
A34: Loan Specialist - State Office | B34: 12 | C34: 5 | D34: $100,926 | E34: =(D34/52)/40 -> $48.52 | F34: =E34*$K$19 -> $17.59 | G34: =E34+F34 -> $66.11 | H34: 1.00 | I34: =H34*G34 -> $66.11
A35: Loan Specialist - State Office | B35: 11 | C35: 5 | D35: $84,204 | E35: $40.48 | F35: $14.67 | G35: $55.16 | H35: 1.00 | I35: $55.16
A36: Reporting and Other | H36: =SUM(H37:H39) -> 2.25 | I36: =SUM(I37:I39) -> $140.96 | J36: =J32 -> 966 | K36: =J36*I36 -> $136,163.68
A37: Program Director - State Office | B37: 13 | C37: 5 | D37: $120,218 | E37: =(D37/52)/40 -> $57.80 | F37: =E37*$K$19 -> $20.95 | G37: =E37+F37 -> $78.75 | H37: 0.25 | I37: =H37*G37 -> $19.69
A38: Loan Specialist - State Office | B38: 12 | C38: 5 | D38: $100,926 | E38: =(D38/52)/40 -> $48.52 | F38: =E38*$K$19 -> $17.59 | G38: =E38+F38 -> $66.11 | H38: 1.00 | I38: =H38*G38 -> $66.11
A39: Loan Specialist - State Office | B39: 11 | C39: 5 | D39: $84,204 | E39: $40.48 | F39: $14.67 | G39: $55.16 | H39: 1.00 | I39: $55.16

Sheet 14Ann$FedGovEst RES-EEI80><200
A1: ='12 BHCollection EA REDA'!A1 -> RURAL BUSINESS COOPERATIVE SERVICE
A2: ='12 BHCollection EA REDA'!A2 -> RURAL ENERGY FOR AMERICA PROGRAM
A3: ='12 BHCollection RES-EEI 80><200'!A3 -> RENEWABLE ENERGY SYSTEM (RES) AND ENERGY EFFICIENCY IMPROVEMENTS (EEI) - $80K> <$200K
A4: ='12 BHCollection EA REDA'!A4 -> INFORMATION COLLECTION BURDEN HOURS
A5: ='12 BHCollection EA REDA'!A5 -> OMB # 0570 - 0067
A6: ='12 BHCollection EA REDA'!A6 -> 2024-10-10
A8: 1. OPM GS & SES Pay Tables:
A9: Click Link | B9: Pay & Leave (opm.gov)
A10: Click "pay tables" from first paragraph
A11: Click current Year at top under Salaries & Wages
A13: a. OPM GS Pay Tables: Under "General Schedule (GS) & Locality Pay Tables" click 20## GS Pay Tables (ex. 2024 GS Pay Tables)
A14: Then choose Annual Rate Table for St. Louis - St. Charles - Farminton, MO-IL
A16: b. OPM SES Schedules: Under "Executive & Senior Level Employee Pay Tables" click "Rates of Pay for the Executive Schedule"
A17: Then choose Annual Rate Table for Basic Rates of Pay for Members of the Senior Executive Service.
A19: 2. Benefit % (OMB Memo M-08 13) | B19: https://www.whitehouse.gov/wp-content/uploads/legacy_drupal_files/omb/memoranda/2008/m08-13.pdf | K19: 36.25%
A21: Gray & Blue Columns have automatic formulas. DO NOT input numbers in these columns. | G21: Total | H21: =H23+H27+H32+H36 -> 29.75 | I21: =I23+I27+I32+I36 -> $1,946.80 | K21: =K23+K27+K32+K36 -> $2,525,960.60
A22: Staff Position | B22: GS Grade | C22: GS Step | D22: GS Salary | E22: Hourly Rate Calc | F22: Benefits Calc | G22: Total Salary Rate Calc | H22: Hours Required | I22: Cost Subtotals | J22: # of Responses | K22: Total Costs
A23: Other Requirements | H23: =SUM(H24:H26) -> 9.00 | I23: =SUM(I24:I26) -> $596.69 | J23: ='12 BHCollection RES-EEI 80><200'!E9 -> 1,326 | K23: =J23*I23 -> $791,205.52
A24: Program Director - State Office | B24: 13 | C24: 5 | D24: $120,218 | E24: =(D24/52)/40 -> $57.80 | F24: =E24*$K$19 -> $20.95 | G24: =E24+F24 -> $78.75 | H24: 1.00 | I24: =H24*G24 -> $78.75
A25: Loan Specialist - State Office | B25: 12 | C25: 5 | D25: $100,926 | E25: =(D25/52)/40 -> $48.52 | F25: =E25*$K$19 -> $17.59 | G25: =E25+F25 -> $66.11 | H25: 7.00 | I25: =H25*G25 -> $462.78
A26: Loan Specialist - State Office | B26: 11 | C26: 5 | D26: $84,204 | E26: $40.48 | F26: $14.67 | G26: $55.16 | H26: 1.00 | I26: $55.16
A27: Application | H27: =SUM(H28:H31) -> 13.00 | I27: =SUM(I28:I31) -> $850.18 | J27: =J23 -> 1,326 | K27: =J27*I27 -> $1,127,335.67
A28: Program Director - State Office | B28: 13 | C28: 5 | D28: $120,218 | E28: =(D28/52)/40 -> $57.80 | F28: =E28*$K$19 -> $20.95 | G28: =E28+F28 -> $78.75 | H28: 1.00 | I28: =H28*G28 -> $78.75
A29: Loan Specialist - State Office | B29: 12 | C29: 5 | D29: $100,926 | E29: =(D29/52)/40 -> $48.52 | F29: =E29*$K$19 -> $17.59 | G29: =E29+F29 -> $66.11 | H29: 5.00 | I29: =H29*G29 -> $330.56
A30: Loan Specialist - State Office | B30: 11 | C30: 5 | D30: $84,204 | E30: $40.48 | F30: $14.67 | G30: $55.16 | H30: 2.00 | I30: $110.32
A31: State Environmental Coordinator - State Office | B31: 12 | C31: 5 | D31: $100,926 | E31: $48.52 | F31: =E31*$K$19 -> $17.59 | G31: $66.11 | H31: 5.00 | I31: $330.56
A32: Awardee Documents and Certifications | H32: =SUM(H33:H35) -> 2.50 | I32: =SUM(I33:I35) -> $160.64 | J32: ='12 BHCollection RES-EEI 80><200'!K9 -> 1,215 | K32: =J32*I32 -> $195,181.65
A33: Program Director - State Office | B33: 13 | C33: 5 | D33: $120,218 | E33: =(D33/52)/40 -> $57.80 | F33: =E33*$K$19 -> $20.95 | G33: =E33+F33 -> $78.75 | H33: 0.50 | I33: =H33*G33 -> $39.37
A34: Loan Specialist - State Office | B34: 12 | C34: 5 | D34: $100,926 | E34: =(D34/52)/40 -> $48.52 | F34: =E34*$K$19 -> $17.59 | G34: =E34+F34 -> $66.11 | H34: 1.00 | I34: =H34*G34 -> $66.11
A35: Loan Specialist - State Office | B35: 11 | C35: 5 | D35: $84,204 | E35: $40.48 | F35: $14.67 | G35: $55.16 | H35: 1.00 | I35: $55.16
A36: Reporting and Other | H36: =SUM(H37:H39) -> 5.25 | I36: =SUM(I37:I39) -> $339.29 | J36: =J32 -> 1,215 | K36: =J36*I36 -> $412,237.76
A37: Program Director - State Office | B37: 13 | C37: 5 | D37: $120,218 | E37: =(D37/52)/40 -> $57.80 | F37: =E37*$K$19 -> $20.95 | G37: =E37+F37 -> $78.75 | H37: 0.25 | I37: =H37*G37 -> $19.69
A38: Loan Specialist - State Office | B38: 12 | C38: 5 | D38: $100,926 | E38: =(D38/52)/40 -> $48.52 | F38: =E38*$K$19 -> $17.59 | G38: =E38+F38 -> $66.11 | H38: 4.00 | I38: =H38*G38 -> $264.45
A39: Loan Specialist - State Office | B39: 11 | C39: 5 | D39: $84,204 | E39: $40.48 | F39: $14.67 | G39: $55.16 | H39: 1.00 | I39: $55.16

Sheet 14 Annual$FedGovEst RES-EEI>200
A1: ='12 BHCollection EA REDA'!A1 -> RURAL BUSINESS COOPERATIVE SERVICE
A2: ='12 BHCollection EA REDA'!A2 -> RURAL ENERGY FOR AMERICA PROGRAM
A3: ='12 BHCollection RES-EEI >200'!A3 -> RENEWABLE ENERGY SYSTEM (RES) AND ENERGY EFFICIENCY IMPROVEMENTS (EEI) - >$200K
A4: ='12 BHCollection EA REDA'!A4 -> INFORMATION COLLECTION BURDEN HOURS
A5: ='12 BHCollection EA REDA'!A5 -> OMB # 0570 - 0067
A6: ='12 BHCollection EA REDA'!A6 -> 2024-10-10
A8: 1. OPM GS & SES Pay Tables:
A9: Click Link | B9: Pay & Leave (opm.gov)
A10: Click "pay tables" from first paragraph
A11: Click current Year at top under Salaries & Wages
A13: a. OPM GS Pay Tables: Under "General Schedule (GS) & Locality Pay Tables" click 20## GS Pay Tables (ex. 2024 GS Pay Tables)
A14: Then choose Annual Rate Table for St. Louis - St. Charles - Farminton, MO-IL
A16: b. OPM SES Schedules: Under "Executive & Senior Level Employee Pay Tables" click "Rates of Pay for the Executive Schedule"
A17: Then choose Annual Rate Table for Basic Rates of Pay for Members of the Senior Executive Service.
A19: 2. Benefit % (OMB Memo M-08 13) | B19: https://www.whitehouse.gov/wp-content/uploads/legacy_drupal_files/omb/memoranda/2008/m08-13.pdf | K19: 36.25%
A21: Gray & Blue Columns have automatic formulas. DO NOT input numbers in these columns. | G21: Total | H21: =H23+H27+H32+H36 -> 37.75 | I21: =I23+I27+I32+I36 -> $2,475.69 | K21: =K23+K27+K32+K36 -> $4,424,811.55
A22: Staff Position | B22: GS Grade | C22: GS Step | D22: GS Salary | E22: Hourly Rate Calc | F22: Benefits Calc | G22: Total Salary Rate Calc | H22: Hours Required | I22: Cost Subtotals | J22: # of Responses | K22: Total Costs
A23: Other Requirements | H23: =SUM(H24:H26) -> 11.00 | I23: =SUM(I24:I26) -> $728.91 | J23: ='12 BHCollection RES-EEI >200'!E9 -> 1,818 | K23: =J23*I23 -> $1,325,155.98
A24: Program Director - State Office | B24: 13 | C24: 5 | D24: $120,218 | E24: =(D24/52)/40 -> $57.80 | F24: =E24*$K$19 -> $20.95 | G24: =E24+F24 -> $78.75 | H24: 1.00 | I24: =H24*G24 -> $78.75
A25: Loan Specialist - State Office | B25: 12 | C25: 5 | D25: $100,926 | E25: =(D25/52)/40 -> $48.52 | F25: =E25*$K$19 -> $17.59 | G25: =E25+F25 -> $66.11 | H25: 9.00 | I25: =H25*G25 -> $595.00
A26: Loan Specialist - State Office | B26: 11 | C26: 5 | D26: $84,204 | E26: $40.48 | F26: $14.67 | G26: $55.16 | H26: 1.00 | I26: $55.16
A27: Application | H27: =SUM(H28:H31) -> 19.00 | I27: =SUM(I28:I31) -> $1,246.85 | J27: =J23 -> 1,818 | K27: =J27*I27 -> $2,266,766.07
A28: Program Director - State Office | B28: 13 | C28: 5 | D28: $120,218 | E28: =(D28/52)/40 -> $57.80 | F28: =E28*$K$19 -> $20.95 | G28: =E28+F28 -> $78.75 | H28: 1.00 | I28: =H28*G28 -> $78.75
A29: Loan Specialist - State Office | B29: 12 | C29: 5 | D29: $100,926 | E29: =(D29/52)/40 -> $48.52 | F29: =E29*$K$19 -> $17.59 | G29: =E29+F29 -> $66.11 | H29: 9.00 | I29: =H29*G29 -> $595.00
A30: Loan Specialist - State Office | B30: 11 | C30: 5 | D30: $84,204 | E30: $40.48 | F30: $14.67 | G30: $55.16 | H30: 2.00 | I30: $110.32
A31: State Environmental Coordinator - State Office | B31: 12 | C31: 5 | D31: $100,926 | E31: $48.52 | F31: =E31*$K$19 -> $17.59 | G31: $66.11 | H31: 7.00 | I31: $462.78
A32: Awardee Documents and Certifications | H32: =SUM(H33:H35) -> 2.50 | I32: =SUM(I33:I35) -> $160.64 | J32: ='12 BHCollection RES-EEI >200'!K9 -> 1,666 | K32: =J32*I32 -> $267,631.80
A33: Program Director - State Office | B33: 13 | C33: 5 | D33: $120,218 | E33: =(D33/52)/40 -> $57.80 | F33: =E33*$K$19 -> $20.95 | G33: =E33+F33 -> $78.75 | H33: 0.50 | I33: =H33*G33 -> $39.37
A34: Loan Specialist - State Office | B34: 12 | C34: 5 | D34: $100,926 | E34: =(D34/52)/40 -> $48.52 | F34: =E34*$K$19 -> $17.59 | G34: =E34+F34 -> $66.11 | H34: 1.00 | I34: =H34*G34 -> $66.11
A35: Loan Specialist - State Office | B35: 11 | C35: 5 | D35: $84,204 | E35: $40.48 | F35: $14.67 | G35: $55.16 | H35: 1.00 | I35: $55.16
A36: Reporting and Other | H36: =SUM(H37:H39) -> 5.25 | I36: =SUM(I37:I39) -> $339.29 | J36: =J32 -> 1,666 | K36: =J36*I36 -> $565,257.71
A37: Program Director - State Office | B37: 13 | C37: 5 | D37: $120,218 | E37: =(D37/52)/40 -> $57.80 | F37: =E37*$K$19 -> $20.95 | G37: =E37+F37 -> $78.75 | H37: 0.25 | I37: =H37*G37 -> $19.69
A38: Loan Specialist - State Office | B38: 12 | C38: 5 | D38: $100,926 | E38: =(D38/52)/40 -> $48.52 | F38: =E38*$K$19 -> $17.59 | G38: =E38+F38 -> $66.11 | H38: 4.00 | I38: =H38*G38 -> $264.45
A39: Loan Specialist - State Office | B39: 11 | C39: 5 | D39: $84,204 | E39: $40.48 | F39: $14.67 | G39: $55.16 | H39: 1.00 | I39: $55.16

Sheet 14 Annual $ Fed Gov Est EA REDA
A1: ='12 BHCollection EA REDA'!A1 -> RURAL BUSINESS COOPERATIVE SERVICE
A2: ='12 BHCollection EA REDA'!A2 -> RURAL ENERGY FOR AMERICA PROGRAM
A3: ='12 BHCollection EA REDA'!A3 -> ENERGY AUDIT (EA) AND RENEWABLE ENERGY DEVELOPMENT ASSITANCE (REDA)
A4: ='12 BHCollection EA REDA'!A4 -> INFORMATION COLLECTION BURDEN HOURS
A5: ='12 BHCollection EA REDA'!A5 -> OMB # 0570 - 0067
A6: ='12 BHCollection EA REDA'!A6 -> 2024-10-10
A8: 1. OPM GS & SES Pay Tables:
A9: Click Link | B9: Pay & Leave (opm.gov)
A10: Click "pay tables" from first paragraph
A11: Click current Year at top under Salaries & Wages
A13: a. OPM GS Pay Tables: Under "General Schedule (GS) & Locality Pay Tables" click 20## GS Pay Tables (ex. 2024 GS Pay Tables)
A14: Then choose Annual Rate Table for St. Louis - St. Charles - Farminton, MO-IL
A16: b. OPM SES Schedules: Under "Executive & Senior Level Employee Pay Tables" click "Rates of Pay for the Executive Schedule"
A17: Then choose Annual Rate Table for Basic Rates of Pay for Members of the Senior Executive Service.
A19: 2. Benefit % (OMB Memo M-08 13) | B19: https://www.whitehouse.gov/wp-content/uploads/legacy_drupal_files/omb/memoranda/2008/m08-13.pdf | K19: 36.25%
A21: Gray & Blue Columns have automatic formulas. DO NOT input numbers in these columns. | G21: Total | H21: =H23+H27+H31+H35 -> 24.50 | I21: =I23+I27+I31+I35 -> $1,620.14 | K21: =K23+K27+K31+K35 -> $41,292.55
A22: Staff Position | B22: GS Grade | C22: GS Step | D22: GS Salary | E22: Hourly Rate Calc | F22: Benefits Calc | G22: Total Salary Rate Calc | H22: Hours Required | I22: Cost Subtotals | J22: # of Responses | K22: Total Costs
A23: Other Requirements | H23: =SUM(H24:H26) -> 8.00 | I23: =SUM(I24:I26) -> $543.21 | J23: ='12 BHCollection EA REDA'!C8 -> 28 | K23: =J23*I23 -> $15,209.93
A24: Program Director - State Office | B24: 13 | C24: 5 | D24: $120,218 | E24: =(D24/52)/40 -> $57.80 | F24: =E24*$K$19 -> $20.95 | G24: =E24+F24 -> $78.75 | H24: 2.00 | I24: =H24*G24 -> $157.50
A25: Loan Specialist - State Office | B25: 12 | C25: 5 | D25: $100,926 | E25: =(D25/52)/40 -> $48.52 | F25: =E25*$K$19 -> $17.59 | G25: =E25+F25 -> $66.11 | H25: 5.00 | I25: =H25*G25 -> $330.56
A26: Loan Specialist - State Office | B26: 11 | C26: 5 | D26: $84,204 | E26: $40.48 | F26: $14.67 | G26: $55.16 | H26: 1.00 | I26: $55.16
A27: Application | H27: =SUM(H28:H30) -> 6.00 | I27: =SUM(I28:I30) -> $398.35 | J27: =J23 -> 28 | K27: =J27*I27 -> $11,153.85
A28: Program Director - State Office | B28: 13 | C28: 5 | D28: $120,218 | E28: =(D28/52)/40 -> $57.80 | F28: =E28*$K$19 -> $20.95 | G28: =E28+F28 -> $78.75 | H28: 1.00 | I28: =H28*G28 -> $78.75
A29: Loan Specialist - State Office | B29: 12 | C29: 5 | D29: $100,926 | E29: =(D29/52)/40 -> $48.52 | F29: =E29*$K$19 -> $17.59 | G29: =E29+F29 -> $66.11 | H29: 4.00 | I29: =H29*G29 -> $264.45
A30: Loan Specialist - State Office | B30: 11 | C30: 5 | D30: $84,204 | E30: $40.48 | F30: $14.67 | G30: $55.16 | H30: 1.00 | I30: $55.16
A31: Awardee Documents and Certifications | H31: =SUM(H32:H34) -> 5.25 | I31: =SUM(I32:I34) -> $339.29 | J31: ='12 BHCollection EA REDA'!K8 -> 22 | K31: =J31*I31 -> $7,464.39
A32: Program Director - State Office | B32: 13 | C32: 5 | D32: $120,218 | E32: =(D32/52)/40 -> $57.80 | F32: =E32*$K$19 -> $20.95 | G32: =E32+F32 -> $78.75 | H32: 0.25 | I32: =H32*G32 -> $19.69
A33: Loan Specialist - State Office | B33: 12 | C33: 5 | D33: $100,926 | E33: =(D33/52)/40 -> $48.52 | F33: =E33*$K$19 -> $17.59 | G33: =E33+F33 -> $66.11 | H33: 4.00 | I33: =H33*G33 -> $264.45
A34: Loan Specialist - State Office | B34: 11 | C34: 5 | D34: $84,204 | E34: $40.48 | F34: $14.67 | G34: $55.16 | H34: 1.00 | I34: $55.16
A35: Reporting and Other | H35: =SUM(H36:H38) -> 5.25 | I35: =SUM(I36:I38) -> $339.29 | J35: =J31 -> 22 | K35: =J35*I35 -> $7,464.39
A36: Program Director - State Office | B36: 13 | C36: 5 | D36: $120,218 | E36: =(D36/52)/40 -> $57.80 | F36: =E36*$K$19 -> $20.95 | G36: =E36+F36 -> $78.75 | H36: 0.25 | I36: =H36*G36 -> $19.69
A37: Loan Specialist - State Office | B37: 12 | C37: 5 | D37: $100,926 | E37: =(D37/52)/40 -> $48.52 | F37: =E37*$K$19 -> $17.59 | G37: =E37+F37 -> $66.11 | H37: 4.00 | I37: =H37*G37 -> $264.45
A38: Loan Specialist - State Office | B38: 11 | C38: 5 | D38: $84,204 | E38: $40.48 | F38: $14.67 | G38: $55.16 | H38: 1.00 | I38: $55.16

Sheet 14 Annual $ Fed Gov Est TAG
A1: ='12 BHCollection EA REDA'!A1 -> RURAL BUSINESS COOPERATIVE SERVICE
A2: ='12 BHCollection EA REDA'!A2 -> RURAL ENERGY FOR AMERICA PROGRAM
A3: ='12 BHCollection EA REDA'!A3 -> ENERGY AUDIT (EA) AND RENEWABLE ENERGY DEVELOPMENT ASSITANCE (REDA)
A4: ='12 BHCollection EA REDA'!A4 -> INFORMATION COLLECTION BURDEN HOURS
A5: ='12 BHCollection EA REDA'!A5 -> OMB # 0570 - 0067
A6: ='12 BHCollection EA REDA'!A6 -> 2024-10-10
A8: 1. OPM GS & SES Pay Tables:
A9: Click Link | B9: Pay & Leave (opm.gov)
A10: Click "pay tables" from first paragraph
A11: Click current Year at top under Salaries & Wages
A13: a. OPM GS Pay Tables: Under "General Schedule (GS) & Locality Pay Tables" click 20## GS Pay Tables (ex. 2024 GS Pay Tables)
A14: Then choose Annual Rate Table for St. Louis - St. Charles - Farminton, MO-IL
A16: b. OPM SES Schedules: Under "Executive & Senior Level Employee Pay Tables" click "Rates of Pay for the Executive Schedule"
A17: Then choose Annual Rate Table for Basic Rates of Pay for Members of the Senior Executive Service.
A19: 2. Benefit % (OMB Memo M-08 13) | B19: https://www.whitehouse.gov/wp-content/uploads/legacy_drupal_files/omb/memoranda/2008/m08-13.pdf | K19: 36.25%
A21: Gray & Blue Columns have automatic formulas. DO NOT input numbers in these columns. | G21: Total | H21: =H23+H27+H31 -> 27.00 | I21: =I23+I27+I31 -> $1,782.47 | K21: =K23+K27+K31 -> $388,169.88
A22: Staff Position | B22: GS Grade | C22: GS Step | D22: GS Salary | E22: Hourly Rate Calc | F22: Benefits Calc | G22: Total Salary Rate Calc | H22: Hours Required | I22: Cost Subtotals | J22: # of Responses | K22: Total Costs
A23: Application | H23: =SUM(H24:H26) -> 10.00 | I23: =SUM(I24:I26) -> $664.48 | J23: ='12 BHCollection TAG'!C8 -> 389 | K23: =J23*I23 -> $258,483.02
A24: Program Director - State Office | B24: 13 | C24: 5 | D24: $120,218 | E24: =(D24/52)/40 -> $57.80 | F24: =E24*$K$19 -> $20.95 | G24: =E24+F24 -> $78.75 | H24: 2.00 | I24: =H24*G24 -> $157.50
A25: Loan Specialist - State Office | B25: 12 | C25: 5 | D25: $100,926 | E25: =(D25/52)/40 -> $48.52 | F25: =E25*$K$19 -> $17.59 | G25: =E25+F25 -> $66.11 | H25: 6.00 | I25: =H25*G25 -> $396.67
A26: Loan Specialist - State Office | B26: 11 | C26: 5 | D26: $84,204 | E26: $40.48 | F26: $14.67 | G26: $55.16 | H26: 2.00 | I26: $110.32
A27: Awardee Documents and Certifications | H27: =SUM(H28:H30) -> 8.00 | I27: =SUM(I28:I30) -> $519.62 | J27: ='12 BHCollection TAG'!K8 -> 116 | K27: =J27*I27 -> $60,276.01
A28: Program Director - State Office | B28: 13 | C28: 5 | D28: $120,218 | E28: =(D28/52)/40 -> $57.80 | F28: =E28*$K$19 -> $20.95 | G28: =E28+F28 -> $78.75 | H28: 1.00 | I28: =H28*G28 -> $78.75
A29: Loan Specialist - State Office | B29: 12 | C29: 5 | D29: $100,926 | E29: =(D29/52)/40 -> $48.52 | F29: =E29*$K$19 -> $17.59 | G29: =E29+F29 -> $66.11 | H29: 5.00 | I29: =H29*G29 -> $330.56
A30: Loan Specialist - State Office | B30: 11 | C30: 5 | D30: $84,204 | E30: $40.48 | F30: $14.67 | G30: $55.16 | H30: 2.00 | I30: $110.32
A31: Reporting and Other | H31: =SUM(H32:H34) -> 9.00 | I31: =SUM(I32:I34) -> $598.37 | J31: =J27 -> 116 | K31: =J31*I31 -> $69,410.85
A32: Program Director - State Office | B32: 13 | C32: 5 | D32: $120,218 | E32: =(D32/52)/40 -> $57.80 | F32: =E32*$K$19 -> $20.95 | G32: =E32+F32 -> $78.75 | H32: 2.00 | I32: =H32*G32 -> $157.50
A33: Loan Specialist - State Office | B33: 12 | C33: 5 | D33: $100,926 | E33: =(D33/52)/40 -> $48.52 | F33: =E33*$K$19 -> $17.59 | G33: =E33+F33 -> $66.11 | H33: 5.00 | I33: =H33*G33 -> $330.56
A34: Loan Specialist - State Office | B34: 11 | C34: 5 | D34: $84,204 | E34: $40.48 | F34: $14.67 | G34: $55.16 | H34: 2.00 | I34: $110.32
